Workbook

Sheet Introduction v1.5
A10: EDR Guidelines CoolTools
A11: Pipe Size Optimization Tool v1.6

Sheet System Assumptions
C3: Project Name | D3: My Project
C4: System Name | D4: CHW
C6: System Parameters
C7: System type | D7: CHW | I7: CHW | J7: HW | K7: CW
C8: Average Water temperature | D8: =IF(D7=I7,VLOOKUP(I7,Constants!B153:C155,2,0),IF(D7=J7,VLOOKUP(J7,Constants!B153:C155,2,0),IF(D7=K7,VLOOKUP(K7,Constants!B153:C155,2,0),"ERROR"))) -> 50 | E8: °F
C9: System operation | D9: VFVSFSP | I9: CFCS | J9: VFCS | K9: VFVSFSP | L9: VFVSRSP
C10: Multiplier for constant/variable system | D10: =HLOOKUP(CONST_VAR_UI,Constants!B158:E159,2,0) -> 0.3
C11: Hours per year of operation | D11: 2000 | E11: hours
C12: Pipe insulation thickness (in inches) | D12: Title 24 | E12: (must click "Apply" for change to take effect) | I12: Title 24 | J12: 0.5 | K12: 1 | L12: 1.5 | M12: 2 | N12: None
C13: Fluid speed limit for noise sensitivity? | D13: ON | E13: (must click "Apply" for change to take effect) | I13: ON | J13: OFF
C14: Fluid speed limit for erosion control? | D14: ON | E14: (must click "Apply" for change to take effect) | I14: ON | J14: OFF
C15: Default safety factor: greater of | D15: 5 | E15: %
C16: OR | D16: 5 | E16: ft W.C.

Sheet Economic Assumptions
C3: Economic Assumptions
C5: City cost index multipliers
C6: Market | D6: Oakland, CA
C7: Materials | D7: =VLOOKUP($D$6,Constants!$B$167:$D$175,2,0) -> 110.2
C8: Labor | D8: =VLOOKUP($D$6,Constants!$B$167:$D$175,3,0) -> 127.3
C9: Contractor mark-up
C10: HVAC | D10: 0.25
C11: General | D11: 0.03
C12: Current year | D12: 2011
C13: Means Mechanical Cost Data year | D13: 2008
C14: Average annual first cost escalation | D14: 0.095
C15: Taxes | D15: 0.08
C16: Electricity cost | D16: 0.15 | E16: $/kWh
C17: Gas cost (used only for HW system type) | D17: 1 | E17: $/therm
C18: Inflation rate | D18: 0
C19: Energy escalation rate | D19: 0.01
C20: Discount rate | D20: 0.05
C21: Lifetime of system (<=40 years) | D21: 30 | E21: years
I26: =IF(Constants!C167=0,"",Constants!B167) -> Oakland, CA
I27: =IF(Constants!C168=0,"",Constants!B168) -> Los Angeles, CA
I28: =IF(Constants!C169=0,"",Constants!B169) -> Fresno, CA
I29: =IF(Constants!C170=0,"",Constants!B170) -> San Francisco, CA
I30: =IF(Constants!C171=0,"",Constants!B171) -> San Jose, CA
I31: =IF(Constants!C172=0,"",Constants!B172) -> Riverside, CA
I32: =IF(Constants!C173=0,"",Constants!B173) -> Sacramento, CA
I33: =IF(Constants!C174=0,"",Constants!B174) -> Average National
I34: =IF(Constants!C175=0,"",Constants!B175) -> 

Sheet Piping Circuit
AG1: Inputs | BO1: Outputs
A3: Total system flow | B3: =MAX(GPM) -> 0 | D3: GPM | H3: CRITICAL | S3: CRITICAL | T3: NON-CRITICAL | Z3: 100
A5: Add or delete a row above current cursor position | B5: Segment Grouping | D5: Flow rate | F5: Select Pipe Size or "AUTO" | G5: Auto- Optimized Nominal Pipe Size | H5: Pipe Size | I5: Previous Size | J5: Annual Hours of Oper. | K5: Flow Speed Limit to Prevent Noise? | Q5: Flow Speed Limit to Prevent Erosion? | S5: TYPE COPPER=0, STEEL =1 | T5: Rough- ness | U5: I.D. ["] | V5: RE3 | W5: RE2 | X5: RE* E-4 | Y5: Reynolds Number | Z5: Relative Roughness, e/D | AA5: D/E Threshold for turbulent flow | AB5: Fmin | AC5: A | AD5: B | AE5: f | AF5: Flow regime | AG5: Desired Insulation Wall Thickness | AH5: Insulation Thickness | AI5: Straight Pipe Length | AJ5: Number of Elbows | AL5: Tees with flow through: | AN5: Number of Valves | BJ5: Control Valve DP | BL5: Other: Chiller/ Boiler/ Coil/ HX/ etc. | BO5: Segment Head | BQ5: Velocity | BR5: Friction Rate | BS5: Water volume in pipe | BT5: Const/ Variable multiplier | BU5: BHP | BV5: Pump Motor Power | BW5: + Pump Heat to Chiller | BX5: - Pump Heat to Boiler | BY5: Total Power | CA5: Energy Cnsmp per Year | CD5: ELLS K FACTOR | CF5: TEES K FACTOR | CH5: Total K Factor | CI5: VALVES Cv FACTOR | CO5: P drop | CP5: Calc P drop from fittings (feet) | CQ5: Calc P drop from valves (psi) | CR5: MATERIALS COST: MOTOR | CS5: MATERIALS COST: VFD | CT5: MATERIALS COST: PIPING | CV5: MATERIALS COST: ELLS | CX5: MATERIALS COST: TEES | CY5: MATERIALS COST: VALVES | DG5: LABOR COST: PIPING | DI5: LABOR COST: ELLS | DK5: LABOR COST: TEES | DL5: LABOR COST: VALVES | DS5: LABOR COST: MOTOR | DT5: LABOR COST: VFD | DV5: First Cost | EA5: Lifecycle Cost | EB5: Lifecycle + First Cost | EC5: Annl Energy Costs
A6: Pipe Segment Description | C6: calc'ed? | D6: GPM | E6: rounded GPM | F6: Inches | G6: Inches | H6: Inches | J6: h/yr | L6: Too fast? | M6: T^3 (F) | N6: T^2 (F) | O6: T (F) | P6: viscosity | R6: Too fast? | AG6: Inches | AI6: Feet | AJ6: 90º | AK6: 45º | AL6: =Constants!E10 -> Straight | AM6: =Constants!F10 -> Branch | AN6: =Constants!J10 -> Circuit Setter | AO6: Value in Range? | AQ6: =Constants!K10 -> Silent Check | AR6: Value in Range? | AT6: =Constants!L10 -> Swing Check | AU6: Value in Range? | AW6: Ball or Butterfly | AX6: Value in Range? | AZ6: Use Ball or Butterfly? Ball = 0, Butterfly = 1 | BA6: =CM6 -> Wye-Strainer | BB6: Value in Range? | BD6: =CN6 -> Suction Diffuser | BE6: Value in Range? | BG6: Flow Limiting | BH6: Value in Range? | BJ6: Psi | BL6: Feet | BO6: Feet | BP6: psi | BQ6: Feet/ sec | BR6: Feet/ 100 ft | BS6: Gal | BU6: HP | BV6: kW | BW6: kW | BX6: therms/ hr | BY6: kW | BZ6: therms /hr | CA6: kWh | CB6: therms | CD6: 90 | CE6: 45 | CF6: LINE | CG6: BRANCH | CI6: =Constants!J10 -> Circuit Setter | CJ6: =Constants!K10 -> Silent Check | CK6: =Constants!L10 -> Swing Check | CL6: Ball/ Butterfly | CM6: =Constants!O10 -> Wye-Strainer | CN6: =Constants!P10 -> Suction Diffuser | CO6: Flow Limiting Valve (feet) | CT6: piping | CU6: insulation | CV6: 90 | CW6: 45 | CX6: LINE | CY6: =Constants!J10 -> Circuit Setter | CZ6: =Constants!K10 -> Silent Check | DA6: =Constants!L10 -> Swing Check | DB6: Ball/ Butterfly | DC6: =Constants!O10 -> Wye-Strainer | DD6: =Constants!P10 -> Suction Diffuser | DE6: =Constants!Q10 -> Flow Limiting Valve | DG6: piping | DH6: insulation | DI6: 90 | DJ6: 45 | DK6: LINE | DL6: =Constants!J10 -> Circuit Setter | DM6: =Constants!K10 -> Silent Check | DN6: =Constants!L10 -> Swing Check | DO6: =CL6 -> Ball/ Butterfly | DP6: =Constants!O10 -> Wye-Strainer | DQ6: =Constants!P10 -> Suction Diffuser | DR6: =Constants!Q10 -> Flow Limiting Valve | DV6: Materials | DW6: Taxes | DX6: Labor | DY6: Contractor Markup | DZ6: Total | EC6: 1 | ED6: 2 | EE6: 3 | EF6: 4 | EG6: 5 | EH6: 6 | EI6: 7 | EJ6: 8 | EK6: 9 | EL6: 10 | EM6: 11 | EN6: 12 | EO6: 13 | EP6: 14 | EQ6: 15 | ER6: 16 | ES6: 17 | ET6: 18 | EU6: 19 | EV6: 20 | EW6: 21 | EX6: 22 | EY6: 23 | EZ6: 24 | FA6: 25 | FB6: 26 | FC6: 27 | FD6: 28 | FE6: 29 | FF6: 30 | FG6: 31 | FH6: 32 | FI6: 33 | FJ6: 34 | FK6: 35 | FL6: 36 | FM6: 37 | FN6: 38 | FO6: 39 | FP6: 40
B7: 1 | C7: TRUE | E7: =MROUND(D7,1) -> 0 | F7: AUTO | G7: 6 | H7: =IF(F7=$F$100,G7,F7) -> 6 | I7: AUTO | J7: ='System Assumptions'!$D$11 -> 2000 | K7: ON | L7: =IF(K7=$K$101,"N/A",IF(BQ7>(VLOOKUP(U7,Constants!$C$127:$D$141,2)),"YES","NO")) -> NO | M7: =O7^3 -> 125000 | N7: =O7^2 -> 2500 | O7: ='System Assumptions'!$D$8 -> 50 | P7: =TREND(Constants!$K$38:$K$47,Constants!$H$38:$J$47,M7:O7) -> 1.424997997e-05 | Q7: ON | R7: =IF(Q7=$Q$100,IF(BQ7>VLOOKUP(J7*BT7,Constants!$L$127:$M$131,2,1),"YES","NO"),"N/A") -> NO | S7: =IF(H7>0,IF(H7>Constants!$F$52,1,0),0) -> 1 | T7: =IF(S7=0,Constants!$V$32,Constants!$W$32 ) -> 0.00015 | U7: =IF(H7>0,VLOOKUP(H7,PIPE_ID,IF(S7=0,2,3)),1) -> 6.065 | V7: =X7^3 -> 0 | W7: =X7^2 -> 0 | X7: =Y7/10000 -> 0 | Y7: =U7/12 * BQ7 / P7 -> 0 | Z7: =T7/(U7/12) -> 0.000296784831 | AA7: =TREND(Constants!$AB$10:$AB$15,Constants!$Y$10:$AA$15,V7:X7) -> 34.96342331 | AB7: =1/(1.14+2*LOG10(Z7))^2 -> 0.02858073414 | AC7: =(2.457*LN(1/((7/Y7)^0.9+(0.27*Z7))))^16 ->  | AD7: =(37530/Y7)^16 ->  | AE7: =8*((8/Y7)^12+(1/(AC7+AD7))^(1.5))^(1/12) ->  | AF7: =IF(Y7<3000,"Laminar",IF(AND(Y7>10000,Z7>AA7),"Fully Rough","Partially Rough")) -> Laminar | AG7: Title 24 | AH7: =IF(H7=0,"",IF(AG7='System Assumptions'!$N$12,0,IF(AG7='System Assumptions'!$I$12,VLOOKUP(O7,Constants!$O$99:$U$107,HLOOKUP(H7,Constants!$P$98:$U$99,2)),AG7))) -> 1 | AO7: =IF(AND(ISNUMBER(AP7),AP7<>9.99999999999999E+26),AN7,"N") -> 0 | AP7: =IF(AN7>0,CI7,0) -> 0 | AR7: =IF(AND(ISNUMBER(AS7),AS7<>9.99999999999999E+26),AQ7,"N") -> 0 | AS7: =IF(AQ7>0,CJ7,0) -> 0 | AU7: =IF(AND(ISNUMBER(AV7),AV7<>9.99999999999999E+26),AT7,"N") -> 0 | AV7: =IF(AT7>0,CL7,0) -> 0 | AX7: =IF(AND(ISNUMBER(AY7),AY7<>9.99999999999999E+26),AW7,"N") -> 0 | AY7: =IF(AW7>0,CL7,0) -> 0 | AZ7: =IF(H7<Constants!$F$53,0,1) -> 1 | BB7: =IF(AND(ISNUMBER(BC7),BC7<>9.99999999999999E+26),BA7,"N") -> 0 | BC7: =IF(BA7>0,CM7,0) -> 0 | BE7: =IF(AND(ISNUMBER(BF7),BF7<>999999999),BD7,"N") -> 0 | BF7: =IF(BD7>0,CN7,0) -> 0 | BH7: =IF(AND(ISNUMBER(BI7),BI7<>999999999),BG7,"N") -> 0 | BI7: =IF(BG7>0,CO7,0) -> 0 | BK7: =BJ7 -> 0 | BM7: =BL7 -> 0 | BO7: =SUM(BL7,BJ7*2.31,(BR7*AI7/100),CQ7/0.433,CP7) ->  | BP7: =BO7*0.433 ->  | BQ7: =(D7/U7^2)*(1.2835/PI()) -> 0 | BR7: =100 * AE7 / (U7/12) * BQ7^2 / 64.32 ->  | BS7: =AI7*(U7/2/12)^2*PI()*7.481 -> 0 | BT7: ='System Assumptions'!$D$10 -> 0.3 | BU7: ='Piping Circuit'!$B$3*BO7/(3960*Constants!$F$181) ->  | BV7: =BU7*0.746/(Constants!$F$199*IF(OR(CONST_VAR_UI=Constants!$Q$161,CONST_VAR_UI='System Assumptions'!$L$9),Constants!$C$217,1))*BT7 ->  | BW7: =BU7*2545/12000*Constants!$C$215*BT7 ->  | BX7: =-BU7*2545/100000/Constants!$C$216*BT7 ->  | BY7: =BV7+IF('System Assumptions'!$D$7='System Assumptions'!$I$7,BW7,0) ->  | BZ7: =IF('System Assumptions'!$D$7='System Assumptions'!$J$7,BX7,0) -> 0 | CA7: =BY7*J7 ->  | CB7: =BZ7*J7 -> 0 | CD7: =VLOOKUP($H7,IF($S7=0,K_COPPER,K_STEEL),2) -> 0.29 | CE7: =VLOOKUP($H7,IF($S7=0,K_COPPER,K_STEEL),3) -> 0.17 | CF7: =VLOOKUP($H7,IF($S7=0,K_COPPER,K_STEEL),4) -> 0.12 | CG7: =VLOOKUP($H7,IF($S7=0,K_COPPER,K_STEEL),5) -> 0.62 | CH7: =IF(AJ7>0,CD7*AJ7,0)+IF(AK7>0,CE7*AK7,0)+IF(AL7>0,CF7*AL7,0)+IF(AM7>0,CG7*AM7,0) -> 0 | CI7: =VLOOKUP($H7,CV_VALVES,2) -> 650 | CJ7: =VLOOKUP($H7,CV_VALVES,3) -> 625 | CK7: =VLOOKUP($H7,CV_VALVES,4) -> 1440 | CL7: =IF(AZ7=0,VLOOKUP($H7,CV_VALVES,5),VLOOKUP($H7,CV_VALVES,6)) -> 1613 | CM7: =VLOOKUP($H7,CV_VALVES,7) -> 597 | CN7: =VLOOKUP($H7,CV_VALVES,8) -> 520 | CO7: =VLOOKUP($H7,CV_VALVES,9) -> 7.4 | CP7: =CH7*BQ7^2/(2*32.1) -> 0 | CQ7: =IF(AN7>0,($D7/CI7)^2,0)*AN7+IF(AQ7>0,($D7/CJ7)^2,0)*AQ7+IF(AT7>0,($D7/CK7)^2,0)*AT7+IF(AW7>0,($D7/CL7)^2,0)*AW7+IF(BA7>0,($D7/CM7)^2,0)*BA7+IF(BD7>0,($D7/CN7)^2,0)*BD7+IF(BG7>0,CO7,0)*BG7 -> 0 | CT7: =VLOOKUP($H7,IF($S7,PRICE_STEEL,PRICE_COPPER),2)*$AI7 -> 0 | CU7: =IF(AH7=0,0,VLOOKUP(H7,Constants!$B$97:$F$119,HLOOKUP(AH7,Constants!$C$96:$F$97,2))*$AI7) -> 0 | CV7: =VLOOKUP($H7,IF($S7,PRICE_STEEL,PRICE_COPPER),Constants!$E$51)*AJ7 -> 0 | CW7: =VLOOKUP($H7,IF($S7,PRICE_STEEL,PRICE_COPPER),Constants!$G$51)*AK7 -> 0 | CX7: =VLOOKUP($H7,IF($S7,PRICE_STEEL,PRICE_COPPER),Constants!$I$51)*(AL7+AM7) -> 0 | CY7: =IF(AN7=0,0,VLOOKUP($H7,IF($S7,PRICE_STEEL,PRICE_COPPER),Constants!K$51)*AN7) -> 0 | CZ7: =IF(AQ7=0,0,VLOOKUP($H7,IF($S7,PRICE_STEEL,PRICE_COPPER),Constants!M$51)*AQ7) -> 0 | DA7: =IF(AT7=0,0,VLOOKUP($H7,IF($S7,PRICE_STEEL,PRICE_COPPER),Constants!O$51)*AT7) -> 0 | DB7: =IF(AW7=0,0,VLOOKUP($H7,IF($S7,PRICE_STEEL,PRICE_COPPER),IF(AZ7=0,Constants!Q$51,Constants!S$51))*AW7) -> 0 | DC7: =IF(BA7=0,0,VLOOKUP($H7,IF($S7,PRICE_STEEL,PRICE_COPPER),Constants!U$51)*BA7) -> 0 | DD7: =IF(BD7=0,0,VLOOKUP($H7,IF($S7,PRICE_STEEL,PRICE_COPPER),Constants!W$51)*BD7) -> 0 | DE7: =IF(BG7=0,0,VLOOKUP($H7,IF($S7,PRICE_STEEL,PRICE_COPPER),Constants!Y$51)*BG7) -> 0 | DG7: =VLOOKUP($H7,IF($S7,PRICE_STEEL,PRICE_COPPER),Constants!$D$51)*$AI7 -> 0 | DH7: =IF(AH7=0,0,VLOOKUP(H7,Constants!$I$97:$M$119,HLOOKUP(AH7,Constants!$J$96:$M$97,2))*$AI7) -> 0 | DI7: =VLOOKUP($H7,IF($S7,PRICE_STEEL,PRICE_COPPER),Constants!$F$51)*AJ7 -> 0 | DJ7: =VLOOKUP($H7,IF($S7,PRICE_STEEL,PRICE_COPPER),Constants!$H$51)*AK7 -> 0 | DK7: =VLOOKUP($H7,IF($S7,PRICE_STEEL,PRICE_COPPER),Constants!$J$51)*(AL7+AM7) -> 0 | DL7: =IF(AN7=0,0,VLOOKUP($H7,IF($S7,PRICE_STEEL,PRICE_COPPER),Constants!L$51)*AN7) -> 0 | DM7: =IF(AQ7=0,0,VLOOKUP($H7,IF($S7,PRICE_STEEL,PRICE_COPPER),Constants!N$51)*AQ7) -> 0 | DN7: =IF(AT7=0,0,VLOOKUP($H7,IF($S7,PRICE_STEEL,PRICE_COPPER),Constants!P$51)*AT7) -> 0 | DO7: =IF(AW7=0,0,VLOOKUP($H7,IF($S7,PRICE_STEEL,PRICE_COPPER),IF(AZ7=0,Constants!R$51,Constants!T$51))*AW7) -> 0 | DP7: =IF(BA7=0,0,VLOOKUP($H7,IF($S7,PRICE_STEEL,PRICE_COPPER),Constants!V$51)*BA7) -> 0 | DQ7: =IF(BD7=0,0,VLOOKUP($H7,IF($S7,PRICE_STEEL,PRICE_COPPER),Constants!X$51)*BD7) -> 0 | DR7: =IF(BG7=0,0,VLOOKUP($H7,IF($S7,PRICE_STEEL,PRICE_COPPER),Constants!Z$51)*BG7) -> 0 | DV7: ='Economic Assumptions'!$D$7/100*SUM(CT7:DE7)*(1+'Economic Assumptions'!$D$14)^('Economic Assumptions'!$D$12-'Economic Assumptions'!$D$13) -> 0 | DW7: =DV7*'Economic Assumptions'!$D$15 -> 0 | DX7: ='Economic Assumptions'!$D$8/100*SUM(DG7:DR7)*(1+'Economic Assumptions'!$D$14)^('Economic Assumptions'!$D$12-'Economic Assumptions'!$D$13) -> 0 | DY7: =SUM(DV7:DX7)*((1+'Economic Assumptions'!$D$10)*(1+'Economic Assumptions'!$D$11)-1) -> 0 | DZ7: =SUM(DV7:DY7) -> 0 | EA7: =IF($H$3=$S$3,NPV(('Economic Assumptions'!$D$20),EC7:FP7),0) ->  | EB7: =DZ7+IF($H$3=$S$3,EA7,0) ->  | EC7: =IF(EC$6>'Economic Assumptions'!$D$21,0,($CA7*'Economic Assumptions'!$D$16+$CB7*'Economic Assumptions'!$D$17)*(1+'Economic Assumptions'!$D$18+'Economic Assumptions'!$D$19)^(EC$6)) ->  | ED7: =IF(ED$6>'Economic Assumptions'!$D$21,0,($CA7*'Economic Assumptions'!$D$16+$CB7*'Economic Assumptions'!$D$17)*(1+'Economic Assumptions'!$D$18+'Economic Assumptions'!$D$19)^(ED$6)) ->  | EE7: =IF(EE$6>'Economic Assumptions'!$D$21,0,($CA7*'Economic Assumptions'!$D$16+$CB7*'Economic Assumptions'!$D$17)*(1+'Economic Assumptions'!$D$18+'Economic Assumptions'!$D$19)^(EE$6)) ->  | EF7: =IF(EF$6>'Economic Assumptions'!$D$21,0,($CA7*'Economic Assumptions'!$D$16+$CB7*'Economic Assumptions'!$D$17)*(1+'Economic Assumptions'!$D$18+'Economic Assumptions'!$D$19)^(EF$6)) ->  | EG7: =IF(EG$6>'Economic Assumptions'!$D$21,0,($CA7*'Economic Assumptions'!$D$16+$CB7*'Economic Assumptions'!$D$17)*(1+'Economic Assumptions'!$D$18+'Economic Assumptions'!$D$19)^(EG$6)) ->  | EH7: =IF(EH$6>'Economic Assumptions'!$D$21,0,($CA7*'Economic Assumptions'!$D$16+$CB7*'Economic Assumptions'!$D$17)*(1+'Economic Assumptions'!$D$18+'Economic Assumptions'!$D$19)^(EH$6)) ->  | EI7: =IF(EI$6>'Economic Assumptions'!$D$21,0,($CA7*'Economic Assumptions'!$D$16+$CB7*'Economic Assumptions'!$D$17)*(1+'Economic Assumptions'!$D$18+'Economic Assumptions'!$D$19)^(EI$6)) ->  | EJ7: =IF(EJ$6>'Economic Assumptions'!$D$21,0,($CA7*'Economic Assumptions'!$D$16+$CB7*'Economic Assumptions'!$D$17)*(1+'Economic Assumptions'!$D$18+'Economic Assumptions'!$D$19)^(EJ$6)) ->  | EK7: =IF(EK$6>'Economic Assumptions'!$D$21,0,($CA7*'Economic Assumptions'!$D$16+$CB7*'Economic Assumptions'!$D$17)*(1+'Economic Assumptions'!$D$18+'Economic Assumptions'!$D$19)^(EK$6)) ->  | EL7: =IF(EL$6>'Economic Assumptions'!$D$21,0,($CA7*'Economic Assumptions'!$D$16+$CB7*'Economic Assumptions'!$D$17)*(1+'Economic Assumptions'!$D$18+'Economic Assumptions'!$D$19)^(EL$6)) ->  | EM7: =IF(EM$6>'Economic Assumptions'!$D$21,0,($CA7*'Economic Assumptions'!$D$16+$CB7*'Economic Assumptions'!$D$17)*(1+'Economic Assumptions'!$D$18+'Economic Assumptions'!$D$19)^(EM$6)) ->  | EN7: =IF(EN$6>'Economic Assumptions'!$D$21,0,($CA7*'Economic Assumptions'!$D$16+$CB7*'Economic Assumptions'!$D$17)*(1+'Economic Assumptions'!$D$18+'Economic Assumptions'!$D$19)^(EN$6)) ->  | EO7: =IF(EO$6>'Economic Assumptions'!$D$21,0,($CA7*'Economic Assumptions'!$D$16+$CB7*'Economic Assumptions'!$D$17)*(1+'Economic Assumptions'!$D$18+'Economic Assumptions'!$D$19)^(EO$6)) ->  | EP7: =IF(EP$6>'Economic Assumptions'!$D$21,0,($CA7*'Economic Assumptions'!$D$16+$CB7*'Economic Assumptions'!$D$17)*(1+'Economic Assumptions'!$D$18+'Economic Assumptions'!$D$19)^(EP$6)) ->  | EQ7: =IF(EQ$6>'Economic Assumptions'!$D$21,0,($CA7*'Economic Assumptions'!$D$16+$CB7*'Economic Assumptions'!$D$17)*(1+'Economic Assumptions'!$D$18+'Economic Assumptions'!$D$19)^(EQ$6)) ->  | ER7: =IF(ER$6>'Economic Assumptions'!$D$21,0,($CA7*'Economic Assumptions'!$D$16+$CB7*'Economic Assumptions'!$D$17)*(1+'Economic Assumptions'!$D$18+'Economic Assumptions'!$D$19)^(ER$6)) ->  | ES7: =IF(ES$6>'Economic Assumptions'!$D$21,0,($CA7*'Economic Assumptions'!$D$16+$CB7*'Economic Assumptions'!$D$17)*(1+'Economic Assumptions'!$D$18+'Economic Assumptions'!$D$19)^(ES$6)) ->  | ET7: =IF(ET$6>'Economic Assumptions'!$D$21,0,($CA7*'Economic Assumptions'!$D$16+$CB7*'Economic Assumptions'!$D$17)*(1+'Economic Assumptions'!$D$18+'Economic Assumptions'!$D$19)^(ET$6)) ->  | EU7: =IF(EU$6>'Economic Assumptions'!$D$21,0,($CA7*'Economic Assumptions'!$D$16+$CB7*'Economic Assumptions'!$D$17)*(1+'Economic Assumptions'!$D$18+'Economic Assumptions'!$D$19)^(EU$6)) ->  | EV7: =IF(EV$6>'Economic Assumptions'!$D$21,0,($CA7*'Economic Assumptions'!$D$16+$CB7*'Economic Assumptions'!$D$17)*(1+'Economic Assumptions'!$D$18+'Economic Assumptions'!$D$19)^(EV$6)) ->  | EW7: =IF(EW$6>'Economic Assumptions'!$D$21,0,($CA7*'Economic Assumptions'!$D$16+$CB7*'Economic Assumptions'!$D$17)*(1+'Economic Assumptions'!$D$18+'Economic Assumptions'!$D$19)^(EW$6)) ->  | EX7: =IF(EX$6>'Economic Assumptions'!$D$21,0,($CA7*'Economic Assumptions'!$D$16+$CB7*'Economic Assumptions'!$D$17)*(1+'Economic Assumptions'!$D$18+'Economic Assumptions'!$D$19)^(EX$6)) ->  | EY7: =IF(EY$6>'Economic Assumptions'!$D$21,0,($CA7*'Economic Assumptions'!$D$16+$CB7*'Economic Assumptions'!$D$17)*(1+'Economic Assumptions'!$D$18+'Economic Assumptions'!$D$19)^(EY$6)) ->  | EZ7: =IF(EZ$6>'Economic Assumptions'!$D$21,0,($CA7*'Economic Assumptions'!$D$16+$CB7*'Economic Assumptions'!$D$17)*(1+'Economic Assumptions'!$D$18+'Economic Assumptions'!$D$19)^(EZ$6)) ->  | FA7: =IF(FA$6>'Economic Assumptions'!$D$21,0,($CA7*'Economic Assumptions'!$D$16+$CB7*'Economic Assumptions'!$D$17)*(1+'Economic Assumptions'!$D$18+'Economic Assumptions'!$D$19)^(FA$6)) ->  | FB7: =IF(FB$6>'Economic Assumptions'!$D$21,0,($CA7*'Economic Assumptions'!$D$16+$CB7*'Economic Assumptions'!$D$17)*(1+'Economic Assumptions'!$D$18+'Economic Assumptions'!$D$19)^(FB$6)) ->  | FC7: =IF(FC$6>'Economic Assumptions'!$D$21,0,($CA7*'Economic Assumptions'!$D$16+$CB7*'Economic Assumptions'!$D$17)*(1+'Economic Assumptions'!$D$18+'Economic Assumptions'!$D$19)^(FC$6)) ->  | FD7: =IF(FD$6>'Economic Assumptions'!$D$21,0,($CA7*'Economic Assumptions'!$D$16+$CB7*'Economic Assumptions'!$D$17)*(1+'Economic Assumptions'!$D$18+'Economic Assumptions'!$D$19)^(FD$6)) ->  | FE7: =IF(FE$6>'Economic Assumptions'!$D$21,0,($CA7*'Economic Assumptions'!$D$16+$CB7*'Economic Assumptions'!$D$17)*(1+'Economic Assumptions'!$D$18+'Economic Assumptions'!$D$19)^(FE$6)) ->  | FF7: =IF(FF$6>'Economic Assumptions'!$D$21,0,($CA7*'Economic Assumptions'!$D$16+$CB7*'Economic Assumptions'!$D$17)*(1+'Economic Assumptions'!$D$18+'Economic Assumptions'!$D$19)^(FF$6)) ->  | FG7: =IF(FG$6>'Economic Assumptions'!$D$21,0,($CA7*'Economic Assumptions'!$D$16+$CB7*'Economic Assumptions'!$D$17)*(1+'Economic Assumptions'!$D$18+'Economic Assumptions'!$D$19)^(FG$6)) -> 0 | FH7: =IF(FH$6>'Economic Assumptions'!$D$21,0,($CA7*'Economic Assumptions'!$D$16+$CB7*'Economic Assumptions'!$D$17)*(1+'Economic Assumptions'!$D$18+'Economic Assumptions'!$D$19)^(FH$6)) -> 0 | FI7: =IF(FI$6>'Economic Assumptions'!$D$21,0,($CA7*'Economic Assumptions'!$D$16+$CB7*'Economic Assumptions'!$D$17)*(1+'Economic Assumptions'!$D$18+'Economic Assumptions'!$D$19)^(FI$6)) -> 0 | FJ7: =IF(FJ$6>'Economic Assumptions'!$D$21,0,($CA7*'Economic Assumptions'!$D$16+$CB7*'Economic Assumptions'!$D$17)*(1+'Economic Assumptions'!$D$18+'Economic Assumptions'!$D$19)^(FJ$6)) -> 0 | FK7: =IF(FK$6>'Economic Assumptions'!$D$21,0,($CA7*'Economic Assumptions'!$D$16+$CB7*'Economic Assumptions'!$D$17)*(1+'Economic Assumptions'!$D$18+'Economic Assumptions'!$D$19)^(FK$6)) -> 0 | FL7: =IF(FL$6>'Economic Assumptions'!$D$21,0,($CA7*'Economic Assumptions'!$D$16+$CB7*'Economic Assumptions'!$D$17)*(1+'Economic Assumptions'!$D$18+'Economic Assumptions'!$D$19)^(FL$6)) -> 0 | FM7: =IF(FM$6>'Economic Assumptions'!$D$21,0,($CA7*'Economic Assumptions'!$D$16+$CB7*'Economic Assumptions'!$D$17)*(1+'Economic Assumptions'!$D$18+'Economic Assumptions'!$D$19)^(FM$6)) -> 0 | FN7: =IF(FN$6>'Economic Assumptions'!$D$21,0,($CA7*'Economic Assumptions'!$D$16+$CB7*'Economic Assumptions'!$D$17)*(1+'Economic Assumptions'!$D$18+'Economic Assumptions'!$D$19)^(FN$6)) -> 0 | FO7: =IF(FO$6>'Economic Assumptions'!$D$21,0,($CA7*'Economic Assumptions'!$D$16+$CB7*'Economic Assumptions'!$D$17)*(1+'Economic Assumptions'!$D$18+'Economic Assumptions'!$D$19)^(FO$6)) -> 0 | FP7: =IF(FP$6>'Economic Assumptions'!$D$21,0,($CA7*'Economic Assumptions'!$D$16+$CB7*'Economic Assumptions'!$D$17)*(1+'Economic Assumptions'!$D$18+'Economic Assumptions'!$D$19)^(FP$6)) -> 0
B8: 2 | C8: TRUE | E8: =MROUND(D8,1) -> 0 | F8: AUTO | G8: 6 | H8: =IF(F8=$F$100,G8,F8) -> 6 | I8: AUTO | J8: ='System Assumptions'!$D$11 -> 2000 | K8: ON | L8: =IF(K8=$K$101,"N/A",IF(BQ8>(VLOOKUP(U8,Constants!$C$127:$D$141,2)),"YES","NO")) -> NO | M8: =O8^3 -> 125000 | N8: =O8^2 -> 2500 | O8: ='System Assumptions'!$D$8 -> 50 | P8: =TREND(Constants!$K$38:$K$47,Constants!$H$38:$J$47,M8:O8) -> 1.424997997e-05 | Q8: ON | R8: =IF(Q8=$Q$100,IF(BQ8>VLOOKUP(J8*BT8,Constants!$L$127:$M$131,2,1),"YES","NO"),"N/A") -> NO | S8: =IF(H8>0,IF(H8>Constants!$F$52,1,0),0) -> 1 | T8: =IF(S8=0,Constants!$V$32,Constants!$W$32 ) -> 0.00015 | U8: =IF(H8>0,VLOOKUP(H8,PIPE_ID,IF(S8=0,2,3)),1) -> 6.065 | V8: =X8^3 -> 0 | W8: =X8^2 -> 0 | X8: =Y8/10000 -> 0 | Y8: =U8/12 * BQ8 / P8 -> 0 | Z8: =T8/(U8/12) -> 0.000296784831 | AA8: =TREND(Constants!$AB$10:$AB$15,Constants!$Y$10:$AA$15,V8:X8) -> 34.96342331 | AB8: =1/(1.14+2*LOG10(Z8))^2 -> 0.02858073414 | AC8: =(2.457*LN(1/((7/Y8)^0.9+(0.27*Z8))))^16 ->  | AD8: =(37530/Y8)^16 ->  | AE8: =8*((8/Y8)^12+(1/(AC8+AD8))^(1.5))^(1/12) ->  | AF8: =IF(Y8<3000,"Laminar",IF(AND(Y8>10000,Z8>AA8),"Fully Rough","Partially Rough")) -> Laminar | AG8: Title 24 | AH8: =IF(H8=0,"",IF(AG8='System Assumptions'!$N$12,0,IF(AG8='System Assumptions'!$I$12,VLOOKUP(O8,Constants!$O$99:$U$107,HLOOKUP(H8,Constants!$P$98:$U$99,2)),AG8))) -> 1 | AO8: =IF(AND(ISNUMBER(AP8),AP8<>9.99999999999999E+26),AN8,"N") -> 0 | AP8: =IF(AN8>0,CI8,0) -> 0 | AR8: =IF(AND(ISNUMBER(AS8),AS8<>9.99999999999999E+26),AQ8,"N") -> 0 | AS8: =IF(AQ8>0,CJ8,0) -> 0 | AU8: =IF(AND(ISNUMBER(AV8),AV8<>9.99999999999999E+26),AT8,"N") -> 0 | AV8: =IF(AT8>0,CL8,0) -> 0 | AX8: =IF(AND(ISNUMBER(AY8),AY8<>9.99999999999999E+26),AW8,"N") -> 0 | AY8: =IF(AW8>0,CL8,0) -> 0 | AZ8: =IF(H8<Constants!$F$53,0,1) -> 1 | BB8: =IF(AND(ISNUMBER(BC8),BC8<>9.99999999999999E+26),BA8,"N") -> 0 | BC8: =IF(BA8>0,CM8,0) -> 0 | BE8: =IF(AND(ISNUMBER(BF8),BF8<>999999999),BD8,"N") -> 0 | BF8: =IF(BD8>0,CN8,0) -> 0 | BH8: =IF(AND(ISNUMBER(BI8),BI8<>999999999),BG8,"N") -> 0 | BI8: =IF(BG8>0,CO8,0) -> 0 | BK8: =BJ8 -> 0 | BM8: =BL8 -> 0 | BO8: =SUM(BL8,BJ8*2.31,(BR8*AI8/100),CQ8/0.433,CP8) ->  | BP8: =BO8*0.433 ->  | BQ8: =(D8/U8^2)*(1.2835/PI()) -> 0 | BR8: =100 * AE8 / (U8/12) * BQ8^2 / 64.32 ->  | BS8: =AI8*(U8/2/12)^2*PI()*7.481 -> 0 | BT8: ='System Assumptions'!$D$10 -> 0.3 | BU8: ='Piping Circuit'!$B$3*BO8/(3960*Constants!$F$181) ->  | BV8: =BU8*0.746/(Constants!$F$199*IF(OR(CONST_VAR_UI=Constants!$Q$161,CONST_VAR_UI='System Assumptions'!$L$9),Constants!$C$217,1))*BT8 ->  | BW8: =BU8*2545/12000*Constants!$C$215*BT8 ->  | BX8: =-BU8*2545/100000/Constants!$C$216*BT8 ->  | BY8: =BV8+IF('System Assumptions'!$D$7='System Assumptions'!$I$7,BW8,0) ->  | BZ8: =IF('System Assumptions'!$D$7='System Assumptions'!$J$7,BX8,0) -> 0 | CA8: =BY8*J8 ->  | CB8: =BZ8*J8 -> 0 | CD8: =VLOOKUP($H8,IF($S8=0,K_COPPER,K_STEEL),2) -> 0.29 | CE8: =VLOOKUP($H8,IF($S8=0,K_COPPER,K_STEEL),3) -> 0.17 | CF8: =VLOOKUP($H8,IF($S8=0,K_COPPER,K_STEEL),4) -> 0.12 | CG8: =VLOOKUP($H8,IF($S8=0,K_COPPER,K_STEEL),5) -> 0.62 | CH8: =IF(AJ8>0,CD8*AJ8,0)+IF(AK8>0,CE8*AK8,0)+IF(AL8>0,CF8*AL8,0)+IF(AM8>0,CG8*AM8,0) -> 0 | CI8: =VLOOKUP($H8,CV_VALVES,2) -> 650 | CJ8: =VLOOKUP($H8,CV_VALVES,3) -> 625 | CK8: =VLOOKUP($H8,CV_VALVES,4) -> 1440 | CL8: =IF(AZ8=0,VLOOKUP($H8,CV_VALVES,5),VLOOKUP($H8,CV_VALVES,6)) -> 1613 | CM8: =VLOOKUP($H8,CV_VALVES,7) -> 597 | CN8: =VLOOKUP($H8,CV_VALVES,8) -> 520 | CO8: =VLOOKUP($H8,CV_VALVES,9) -> 7.4 | CP8: =CH8*BQ8^2/(2*32.1) -> 0 | CQ8: =IF(AN8>0,($D8/CI8)^2,0)*AN8+IF(AQ8>0,($D8/CJ8)^2,0)*AQ8+IF(AT8>0,($D8/CK8)^2,0)*AT8+IF(AW8>0,($D8/CL8)^2,0)*AW8+IF(BA8>0,($D8/CM8)^2,0)*BA8+IF(BD8>0,($D8/CN8)^2,0)*BD8+IF(BG8>0,CO8,0)*BG8 -> 0 | CT8: =VLOOKUP($H8,IF($S8,PRICE_STEEL,PRICE_COPPER),2)*$AI8 -> 0 | CU8: =IF(AH8=0,0,VLOOKUP(H8,Constants!$B$97:$F$119,HLOOKUP(AH8,Constants!$C$96:$F$97,2))*$AI8) -> 0 | CV8: =VLOOKUP($H8,IF($S8,PRICE_STEEL,PRICE_COPPER),Constants!$E$51)*AJ8 -> 0 | CW8: =VLOOKUP($H8,IF($S8,PRICE_STEEL,PRICE_COPPER),Constants!$G$51)*AK8 -> 0 | CX8: =VLOOKUP($H8,IF($S8,PRICE_STEEL,PRICE_COPPER),Constants!$I$51)*(AL8+AM8) -> 0 | CY8: =IF(AN8=0,0,VLOOKUP($H8,IF($S8,PRICE_STEEL,PRICE_COPPER),Constants!K$51)*AN8) -> 0 | CZ8: =IF(AQ8=0,0,VLOOKUP($H8,IF($S8,PRICE_STEEL,PRICE_COPPER),Constants!M$51)*AQ8) -> 0 | DA8: =IF(AT8=0,0,VLOOKUP($H8,IF($S8,PRICE_STEEL,PRICE_COPPER),Constants!O$51)*AT8) -> 0 | DB8: =IF(AW8=0,0,VLOOKUP($H8,IF($S8,PRICE_STEEL,PRICE_COPPER),IF(AZ8=0,Constants!Q$51,Constants!S$51))*AW8) -> 0 | DC8: =IF(BA8=0,0,VLOOKUP($H8,IF($S8,PRICE_STEEL,PRICE_COPPER),Constants!U$51)*BA8) -> 0 | DD8: =IF(BD8=0,0,VLOOKUP($H8,IF($S8,PRICE_STEEL,PRICE_COPPER),Constants!W$51)*BD8) -> 0 | DE8: =IF(BG8=0,0,VLOOKUP($H8,IF($S8,PRICE_STEEL,PRICE_COPPER),Constants!Y$51)*BG8) -> 0 | DG8: =VLOOKUP($H8,IF($S8,PRICE_STEEL,PRICE_COPPER),Constants!$D$51)*$AI8 -> 0 | DH8: =IF(AH8=0,0,VLOOKUP(H8,Constants!$I$97:$M$119,HLOOKUP(AH8,Constants!$J$96:$M$97,2))*$AI8) -> 0 | DI8: =VLOOKUP($H8,IF($S8,PRICE_STEEL,PRICE_COPPER),Constants!$F$51)*AJ8 -> 0 | DJ8: =VLOOKUP($H8,IF($S8,PRICE_STEEL,PRICE_COPPER),Constants!$H$51)*AK8 -> 0 | DK8: =VLOOKUP($H8,IF($S8,PRICE_STEEL,PRICE_COPPER),Constants!$J$51)*(AL8+AM8) -> 0 | DL8: =IF(AN8=0,0,VLOOKUP($H8,IF($S8,PRICE_STEEL,PRICE_COPPER),Constants!L$51)*AN8) -> 0 | DM8: =IF(AQ8=0,0,VLOOKUP($H8,IF($S8,PRICE_STEEL,PRICE_COPPER),Constants!N$51)*AQ8) -> 0 | DN8: =IF(AT8=0,0,VLOOKUP($H8,IF($S8,PRICE_STEEL,PRICE_COPPER),Constants!P$51)*AT8) -> 0 | DO8: =IF(AW8=0,0,VLOOKUP($H8,IF($S8,PRICE_STEEL,PRICE_COPPER),IF(AZ8=0,Constants!R$51,Constants!T$51))*AW8) -> 0 | DP8: =IF(BA8=0,0,VLOOKUP($H8,IF($S8,PRICE_STEEL,PRICE_COPPER),Constants!V$51)*BA8) -> 0 | DQ8: =IF(BD8=0,0,VLOOKUP($H8,IF($S8,PRICE_STEEL,PRICE_COPPER),Constants!X$51)*BD8) -> 0 | DR8: =IF(BG8=0,0,VLOOKUP($H8,IF($S8,PRICE_STEEL,PRICE_COPPER),Constants!Z$51)*BG8) -> 0 | DV8: ='Economic Assumptions'!$D$7/100*SUM(CT8:DE8)*(1+'Economic Assumptions'!$D$14)^('Economic Assumptions'!$D$12-'Economic Assumptions'!$D$13) -> 0 | DW8: =DV8*'Economic Assumptions'!$D$15 -> 0 | DX8: ='Economic Assumptions'!$D$8/100*SUM(DG8:DR8)*(1+'Economic Assumptions'!$D$14)^('Economic Assumptions'!$D$12-'Economic Assumptions'!$D$13) -> 0 | DY8: =SUM(DV8:DX8)*((1+'Economic Assumptions'!$D$10)*(1+'Economic Assumptions'!$D$11)-1) -> 0 | DZ8: =SUM(DV8:DY8) -> 0 | EA8: =IF($H$3=$S$3,NPV(('Economic Assumptions'!$D$20),EC8:FP8),0) ->  | EB8: =DZ8+IF($H$3=$S$3,EA8,0) ->  | EC8: =IF(EC$6>'Economic Assumptions'!$D$21,0,($CA8*'Economic Assumptions'!$D$16+$CB8*'Economic Assumptions'!$D$17)*(1+'Economic Assumptions'!$D$18+'Economic Assumptions'!$D$19)^(EC$6)) ->  | ED8: =IF(ED$6>'Economic Assumptions'!$D$21,0,($CA8*'Economic Assumptions'!$D$16+$CB8*'Economic Assumptions'!$D$17)*(1+'Economic Assumptions'!$D$18+'Economic Assumptions'!$D$19)^(ED$6)) ->  | EE8: =IF(EE$6>'Economic Assumptions'!$D$21,0,($CA8*'Economic Assumptions'!$D$16+$CB8*'Economic Assumptions'!$D$17)*(1+'Economic Assumptions'!$D$18+'Economic Assumptions'!$D$19)^(EE$6)) ->  | EF8: =IF(EF$6>'Economic Assumptions'!$D$21,0,($CA8*'Economic Assumptions'!$D$16+$CB8*'Economic Assumptions'!$D$17)*(1+'Economic Assumptions'!$D$18+'Economic Assumptions'!$D$19)^(EF$6)) ->  | EG8: =IF(EG$6>'Economic Assumptions'!$D$21,0,($CA8*'Economic Assumptions'!$D$16+$CB8*'Economic Assumptions'!$D$17)*(1+'Economic Assumptions'!$D$18+'Economic Assumptions'!$D$19)^(EG$6)) ->  | EH8: =IF(EH$6>'Economic Assumptions'!$D$21,0,($CA8*'Economic Assumptions'!$D$16+$CB8*'Economic Assumptions'!$D$17)*(1+'Economic Assumptions'!$D$18+'Economic Assumptions'!$D$19)^(EH$6)) ->  | EI8: =IF(EI$6>'Economic Assumptions'!$D$21,0,($CA8*'Economic Assumptions'!$D$16+$CB8*'Economic Assumptions'!$D$17)*(1+'Economic Assumptions'!$D$18+'Economic Assumptions'!$D$19)^(EI$6)) ->  | EJ8: =IF(EJ$6>'Economic Assumptions'!$D$21,0,($CA8*'Economic Assumptions'!$D$16+$CB8*'Economic Assumptions'!$D$17)*(1+'Economic Assumptions'!$D$18+'Economic Assumptions'!$D$19)^(EJ$6)) ->  | EK8: =IF(EK$6>'Economic Assumptions'!$D$21,0,($CA8*'Economic Assumptions'!$D$16+$CB8*'Economic Assumptions'!$D$17)*(1+'Economic Assumptions'!$D$18+'Economic Assumptions'!$D$19)^(EK$6)) ->  | EL8: =IF(EL$6>'Economic Assumptions'!$D$21,0,($CA8*'Economic Assumptions'!$D$16+$CB8*'Economic Assumptions'!$D$17)*(1+'Economic Assumptions'!$D$18+'Economic Assumptions'!$D$19)^(EL$6)) ->  | EM8: =IF(EM$6>'Economic Assumptions'!$D$21,0,($CA8*'Economic Assumptions'!$D$16+$CB8*'Economic Assumptions'!$D$17)*(1+'Economic Assumptions'!$D$18+'Economic Assumptions'!$D$19)^(EM$6)) ->  | EN8: =IF(EN$6>'Economic Assumptions'!$D$21,0,($CA8*'Economic Assumptions'!$D$16+$CB8*'Economic Assumptions'!$D$17)*(1+'Economic Assumptions'!$D$18+'Economic Assumptions'!$D$19)^(EN$6)) ->  | EO8: =IF(EO$6>'Economic Assumptions'!$D$21,0,($CA8*'Economic Assumptions'!$D$16+$CB8*'Economic Assumptions'!$D$17)*(1+'Economic Assumptions'!$D$18+'Economic Assumptions'!$D$19)^(EO$6)) ->  | EP8: =IF(EP$6>'Economic Assumptions'!$D$21,0,($CA8*'Economic Assumptions'!$D$16+$CB8*'Economic Assumptions'!$D$17)*(1+'Economic Assumptions'!$D$18+'Economic Assumptions'!$D$19)^(EP$6)) ->  | EQ8: =IF(EQ$6>'Economic Assumptions'!$D$21,0,($CA8*'Economic Assumptions'!$D$16+$CB8*'Economic Assumptions'!$D$17)*(1+'Economic Assumptions'!$D$18+'Economic Assumptions'!$D$19)^(EQ$6)) ->  | ER8: =IF(ER$6>'Economic Assumptions'!$D$21,0,($CA8*'Economic Assumptions'!$D$16+$CB8*'Economic Assumptions'!$D$17)*(1+'Economic Assumptions'!$D$18+'Economic Assumptions'!$D$19)^(ER$6)) ->  | ES8: =IF(ES$6>'Economic Assumptions'!$D$21,0,($CA8*'Economic Assumptions'!$D$16+$CB8*'Economic Assumptions'!$D$17)*(1+'Economic Assumptions'!$D$18+'Economic Assumptions'!$D$19)^(ES$6)) ->  | ET8: =IF(ET$6>'Economic Assumptions'!$D$21,0,($CA8*'Economic Assumptions'!$D$16+$CB8*'Economic Assumptions'!$D$17)*(1+'Economic Assumptions'!$D$18+'Economic Assumptions'!$D$19)^(ET$6)) ->  | EU8: =IF(EU$6>'Economic Assumptions'!$D$21,0,($CA8*'Economic Assumptions'!$D$16+$CB8*'Economic Assumptions'!$D$17)*(1+'Economic Assumptions'!$D$18+'Economic Assumptions'!$D$19)^(EU$6)) ->  | EV8: =IF(EV$6>'Economic Assumptions'!$D$21,0,($CA8*'Economic Assumptions'!$D$16+$CB8*'Economic Assumptions'!$D$17)*(1+'Economic Assumptions'!$D$18+'Economic Assumptions'!$D$19)^(EV$6)) ->  | EW8: =IF(EW$6>'Economic Assumptions'!$D$21,0,($CA8*'Economic Assumptions'!$D$16+$CB8*'Economic Assumptions'!$D$17)*(1+'Economic Assumptions'!$D$18+'Economic Assumptions'!$D$19)^(EW$6)) ->  | EX8: =IF(EX$6>'Economic Assumptions'!$D$21,0,($CA8*'Economic Assumptions'!$D$16+$CB8*'Economic Assumptions'!$D$17)*(1+'Economic Assumptions'!$D$18+'Economic Assumptions'!$D$19)^(EX$6)) ->  | EY8: =IF(EY$6>'Economic Assumptions'!$D$21,0,($CA8*'Economic Assumptions'!$D$16+$CB8*'Economic Assumptions'!$D$17)*(1+'Economic Assumptions'!$D$18+'Economic Assumptions'!$D$19)^(EY$6)) ->  | EZ8: =IF(EZ$6>'Economic Assumptions'!$D$21,0,($CA8*'Economic Assumptions'!$D$16+$CB8*'Economic Assumptions'!$D$17)*(1+'Economic Assumptions'!$D$18+'Economic Assumptions'!$D$19)^(EZ$6)) ->  | FA8: =IF(FA$6>'Economic Assumptions'!$D$21,0,($CA8*'Economic Assumptions'!$D$16+$CB8*'Economic Assumptions'!$D$17)*(1+'Economic Assumptions'!$D$18+'Economic Assumptions'!$D$19)^(FA$6)) ->  | FB8: =IF(FB$6>'Economic Assumptions'!$D$21,0,($CA8*'Economic Assumptions'!$D$16+$CB8*'Economic Assumptions'!$D$17)*(1+'Economic Assumptions'!$D$18+'Economic Assumptions'!$D$19)^(FB$6)) ->  | FC8: =IF(FC$6>'Economic Assumptions'!$D$21,0,($CA8*'Economic Assumptions'!$D$16+$CB8*'Economic Assumptions'!$D$17)*(1+'Economic Assumptions'!$D$18+'Economic Assumptions'!$D$19)^(FC$6)) ->  | FD8: =IF(FD$6>'Economic Assumptions'!$D$21,0,($CA8*'Economic Assumptions'!$D$16+$CB8*'Economic Assumptions'!$D$17)*(1+'Economic Assumptions'!$D$18+'Economic Assumptions'!$D$19)^(FD$6)) ->  | FE8: =IF(FE$6>'Economic Assumptions'!$D$21,0,($CA8*'Economic Assumptions'!$D$16+$CB8*'Economic Assumptions'!$D$17)*(1+'Economic Assumptions'!$D$18+'Economic Assumptions'!$D$19)^(FE$6)) ->  | FF8: =IF(FF$6>'Economic Assumptions'!$D$21,0,($CA8*'Economic Assumptions'!$D$16+$CB8*'Economic Assumptions'!$D$17)*(1+'Economic Assumptions'!$D$18+'Economic Assumptions'!$D$19)^(FF$6)) ->  | FG8: =IF(FG$6>'Economic Assumptions'!$D$21,0,($CA8*'Economic Assumptions'!$D$16+$CB8*'Economic Assumptions'!$D$17)*(1+'Economic Assumptions'!$D$18+'Economic Assumptions'!$D$19)^(FG$6)) -> 0 | FH8: =IF(FH$6>'Economic Assumptions'!$D$21,0,($CA8*'Economic Assumptions'!$D$16+$CB8*'Economic Assumptions'!$D$17)*(1+'Economic Assumptions'!$D$18+'Economic Assumptions'!$D$19)^(FH$6)) -> 0 | FI8: =IF(FI$6>'Economic Assumptions'!$D$21,0,($CA8*'Economic Assumptions'!$D$16+$CB8*'Economic Assumptions'!$D$17)*(1+'Economic Assumptions'!$D$18+'Economic Assumptions'!$D$19)^(FI$6)) -> 0 | FJ8: =IF(FJ$6>'Economic Assumptions'!$D$21,0,($CA8*'Economic Assumptions'!$D$16+$CB8*'Economic Assumptions'!$D$17)*(1+'Economic Assumptions'!$D$18+'Economic Assumptions'!$D$19)^(FJ$6)) -> 0 | FK8: =IF(FK$6>'Economic Assumptions'!$D$21,0,($CA8*'Economic Assumptions'!$D$16+$CB8*'Economic Assumptions'!$D$17)*(1+'Economic Assumptions'!$D$18+'Economic Assumptions'!$D$19)^(FK$6)) -> 0 | FL8: =IF(FL$6>'Economic Assumptions'!$D$21,0,($CA8*'Economic Assumptions'!$D$16+$CB8*'Economic Assumptions'!$D$17)*(1+'Economic Assumptions'!$D$18+'Economic Assumptions'!$D$19)^(FL$6)) -> 0 | FM8: =IF(FM$6>'Economic Assumptions'!$D$21,0,($CA8*'Economic Assumptions'!$D$16+$CB8*'Economic Assumptions'!$D$17)*(1+'Economic Assumptions'!$D$18+'Economic Assumptions'!$D$19)^(FM$6)) -> 0 | FN8: =IF(FN$6>'Economic Assumptions'!$D$21,0,($CA8*'Economic Assumptions'!$D$16+$CB8*'Economic Assumptions'!$D$17)*(1+'Economic Assumptions'!$D$18+'Economic Assumptions'!$D$19)^(FN$6)) -> 0 | FO8: =IF(FO$6>'Economic Assumptions'!$D$21,0,($CA8*'Economic Assumptions'!$D$16+$CB8*'Economic Assumptions'!$D$17)*(1+'Economic Assumptions'!$D$18+'Economic Assumptions'!$D$19)^(FO$6)) -> 0 | FP8: =IF(FP$6>'Economic Assumptions'!$D$21,0,($CA8*'Economic Assumptions'!$D$16+$CB8*'Economic Assumptions'!$D$17)*(1+'Economic Assumptions'!$D$18+'Economic Assumptions'!$D$19)^(FP$6)) -> 0
BL9: Totals | BO9: =SUM(BO7:BO8) ->  | BP9: =BO9*0.433 ->  | BS9: =SUM(BS7:BS8) -> 0 | BU9: =SUM(BU7:BU8) ->  | BY9: without Safety Factor | CR9: =VLOOKUP(BHP_TOTAL_W_SF*1.1,Constants!$W$98:$AC$120,2) ->  | CS9: =IF(OR(CONST_VAR_UI='System Assumptions'!$K$9,CONST_VAR_UI='System Assumptions'!$L$9),VLOOKUP(BHP_TOTAL_W_SF,Constants!$W$98:$AC$120,5),0) ->  | DS9: =VLOOKUP(BHP_TOTAL_W_SF*1.1,Constants!$W$98:$AC$120,3) ->  | DT9: =IF(OR(CONST_VAR_UI='System Assumptions'!$K$9,CONST_VAR_UI='System Assumptions'!$L$9),VLOOKUP(BHP_TOTAL_W_SF,Constants!$W$98:$AC$120,6),0) ->  | DV9: =(CR9+CS9)*(1+'Economic Assumptions'!$D$14)^('Economic Assumptions'!$D$12-'Economic Assumptions'!$D$13) ->  | DW9: =DV9*'Economic Assumptions'!$D$15 ->  | DX9: =(DS9+DT9)*(1+'Economic Assumptions'!$D$14)^('Economic Assumptions'!$D$12-'Economic Assumptions'!$D$13) ->  | DY9: =SUM(DV9:DX9)*((1+'Economic Assumptions'!$D$10)*(1+'Economic Assumptions'!$D$11)-1) ->  | DZ9: =SUM(DZ7:DZ8)+SUM(DV9:DY9) ->  | EA9: =SUM(EA7:EA8) ->  | EB9: =SUM(DZ9:EA9) -> 
BN10: + | BO10: =MAX('System Assumptions'!$D$16,0.01*'System Assumptions'!$D$15*BO9) ->  | BQ10: Safety factor | BU10: =BO11*SYSTEM_GPM/3960/Constants!$F$181 ->  | BY10: with Safety Factor
A11: Output Summary: | C11: Previous Cost | BO11: =SUM(BO9:BO10) -> 
A13: Total Head (Feet) | B13: =BO9 -> 
A14: Total Head w S.F. (Feet) | B14: =BO11 -> 
A16: Total Cost | B16: =B18+B17 -> 
A17: Lifecycle Energy Cost | B17: =IF($H$3=$S$3,EA9,0) ->  | C17: 183.86
A18: First Cost | B18: =DZ9 -> 
A20: Scalar Ratio | B20: =EA9/(SUM(EC7:EC8)/(1+'Economic Assumptions'!D18+'Economic Assumptions'!D19)) -> 
A22: Notes:
A23: Enter user notes here.
F100: AUTO | K100: ON | Q100: ON | AG100: Title 24
F101: =Constants!U11 -> 0.5 | K101: OFF | Q101: OFF | AG101: 0.5
F102: =Constants!U12 -> 0.75 | AG102: 1
F103: =Constants!U13 -> 1 | AG103: 1.5
F104: =Constants!U14 -> 1.25 | AG104: 2
F105: =Constants!U15 -> 1.5 | AG105: None
F106: =Constants!U16 -> 2
F107: =Constants!U17 -> 2.5
F108: =Constants!U18 -> 3
F109: =Constants!U19 -> 4
F110: =Constants!U20 -> 5
F111: =Constants!U21 -> 6
F112: =Constants!U22 -> 8
F113: =Constants!U23 -> 10
F114: =Constants!U24 -> 12
F115: =Constants!U25 -> 14
F116: =Constants!U26 -> 16
F117: =Constants!U27 -> 18
F118: =Constants!U28 -> 20
F119: =Constants!U29 -> 24
F120: =Constants!U30 -> 26
F121: =Constants!U31 -> 30

Sheet Constants
C2: Grey cells indicate components or elements that do not exist; values are set to 999999999
C3: Pink cells indicate extrapolations for data points that were unavailable
B4: Red | C4: Red font indicates updated pricing values
B6: Flow Parameters
B8: K VALUES COPPER | I8: VALVES | U8: PIPE INNER DIAMETERS | Y8: Threshold for fully turbulent rough flow
B9: SIZE | C9: ELLS | E9: TEES | I9: SIZE | J9: Cv | Q9: dP (feet) | U9: O.D " | V9: I.D. " | Y9: Re3 | Z9: Re2 | AA9: Reynolds Number* 10-4 | AB9: Relative Roughness, D/E
C10: 90 | D10: 45 | E10: Straight | F10: Branch | J10: Circuit Setter | K10: Silent Check | L10: Swing Check | M10: Ball | N10: Butterfly | O10: Wye-Strainer | P10: Suction Diffuser | Q10: Flow Limiting Valve | V10: Type L COPPER | W10: SCH 40 or STD WT STEEL | Y10: =AA10^3 -> 27 | Z10: =AA10^2 -> 9 | AA10: 3 | AB10: =1/0.05 -> 20
B11: 0.5 | C11: 0.47 | D11: 0.25 | E11: 0.29 | F11: 1.1 | I11: 0.5 | J11: 1.7 | K11: 6.86 | L11: 4.8 | M11: 5 | N11: 999999999 | O11: =TREND(($O$16:$O$24)^(1/3),$I$16:$I$24,I11)^3 -> 25.89772696 | P11: 999999999 | Q11: 7.4 | U11: 0.5 | V11: 0.545 | W11: 0.622 | Y11: 0.857375 | Z11: 0.9025 | AA11: 0.95 | AB11: =1/0.015 -> 66.66666667
B12: 0.75 | C12: 0.45 | D12: 0.24 | E12: 0.28 | F12: 1.05 | I12: 0.75 | J12: 2.7 | K12: 16.3 | L12: 14.3 | M12: 12 | N12: 999999999 | O12: =TREND(($O$16:$O$24)^(1/3),$I$16:$I$24,I12)^3 -> 32.79261704 | P12: 999999999 | Q12: 7.4 | U12: 0.75 | V12: 0.785 | W12: 0.824 | Y12: 474552 | Z12: 6084 | AA12: 78 | AB12: =1/0.002 -> 500
B13: 1 | C13: 0.43 | D13: 0.22 | E13: 0.26 | F13: 1 | I13: 1 | J13: 5.8 | K13: 30 | L13: 24 | M13: 22 | N13: 999999999 | O13: =TREND(($O$16:$O$24)^(1/3),$I$16:$I$24,I13)^3 -> 40.81402676 | P13: 999999999 | Q13: 7.4 | U13: 1 | V13: 1.025 | W13: 1.049 | Y13: 85184000 | Z13: 193600 | AA13: 440 | AB13: =1/0.0004 -> 2500
B14: 1.25 | C14: 0.41 | D14: 0.22 | E14: 0.25 | F14: 0.95 | I14: 1.25 | J14: 11 | K14: 49 | L14: 43 | M14: 35 | N14: 999999999 | O14: =TREND(($O$16:$O$24)^(1/3),$I$16:$I$24,I14)^3 -> 50.04719632 | P14: 999999999 | Q14: 7.4 | U14: 1.25 | V14: 1.265 | W14: 1.38 | Y14: 9261000000 | Z14: 4410000 | AA14: 2100 | AB14: =1/0.0001 -> 10000
B15: 1.5 | C15: 0.4 | D15: 0.21 | E15: 0.23 | F15: 0.9 | I15: 1.5 | J15: 20 | K15: 72 | L15: 60 | M15: 52 | N15: 999999999 | O15: =TREND(($O$16:$O$24)^(1/3),$I$16:$I$24,I15)^3 -> 60.57736592 | P15: 999999999 | Q15: 7.4 | U15: 1.5 | V15: 1.505 | W15: 1.61 | Y15: 97336000000 | Z15: 21160000 | AA15: =46000000/10000 -> 4600 | AB15: =1/0.00005 -> 20000
B16: 2 | C16: 0.38 | D16: 0.2 | E16: 0.2 | F16: 0.84 | I16: 2 | J16: 40 | K16: 130 | L16: 102 | M16: 95 | N16: 166 | O16: 72 | P16: 55 | Q16: 7.4 | U16: 2 | V16: 1.985 | W16: 2.067
B17: 2.5 | C17: 0.35 | D17: 0.19 | E17: 0.18 | F17: 0.79 | I17: 2.5 | J17: 62 | K17: 110 | L17: 221 | M17: 999999999 | N17: 247 | O17: 111 | P17: 90 | Q17: 7.4 | U17: 2.5 | V17: 2.465 | W17: 2.469
B18: 3 | C18: 0.34 | D18: 0.18 | E18: 0.17 | F18: 0.76 | I18: 3 | J18: 110 | K18: 155 | L18: 327 | M18: 999999999 | N18: 340 | O18: 164 | P18: 110 | Q18: 7.4 | U18: 3 | V18: 2.945 | W18: 3.068
B19: 4 | C19: 0.31 | D19: 0.18 | E19: 0.15 | F19: 0.7 | I19: 4 | J19: 220 | K19: 278 | L19: 605 | M19: 999999999 | N19: 660 | O19: 285 | P19: 200 | Q19: 7.4 | U19: 4 | V19: 3.905 | W19: 4.026
I20: 5 | J20: 420 | K20: 431 | L20: 975 | M20: 999999999 | N20: 1080 | O20: 410 | P20: 350 | Q20: 7.4 | U20: 5 | V20: 4.875 | W20: 5.047
B21: K VALUES STEEL | I21: 6 | J21: 650 | K21: 625 | L21: 1440 | M21: 999999999 | N21: 1613 | O21: 597 | P21: 520 | Q21: 7.4 | U21: 6 | V21: 5.845 | W21: 6.065
B22: SIZE | C22: ELLS | E22: TEES | I22: 8 | J22: 875 | K22: 1115 | L22: 2670 | M22: 999999999 | N22: 3759 | O22: 1000 | P22: 760 | Q22: 7.4 | U22: 8 | V22: 7.725 | W22: 7.981
C23: 90 | D23: 45 | E23: Straight | F23: BRANCH | I23: 10 | J23: 1200 | K23: 1770 | L23: 4300 | M23: 999999999 | N23: 5300 | O23: 1800 | P23: 1000 | Q23: 7.4 | U23: 10 | V23: 9.625 | W23: 10.02
B24: 1 | C24: 0.43 | D24: 0.22 | E24: 0.26 | F24: 1 | I24: 12 | J24: 2250 | K24: 2500 | L24: 6350 | M24: 999999999 | N24: 7969 | O24: 2800 | P24: 999999999 | Q24: 7.4 | U24: 12 | V24: 11.565 | W24: 12
B25: 1.25 | C25: 0.41 | D25: 0.22 | E25: 0.25 | F25: 0.95 | I25: 14 | J25: 999999999 | K25: 3400 | L25: 8600 | M25: 999999999 | N25: 11917 | O25: =ROUND(TREND(($O$16:$O$24)^(1/3),$I$16:$I$24,I25)^3,-1) -> 4120 | P25: 999999999 | Q25: 7.4 | U25: 14 | W25: 13.25
B26: 1.5 | C26: 0.4 | D26: 0.21 | E26: 0.23 | F26: 0.9 | I26: 16 | J26: 999999999 | K26: 4400 | L26: 11400 | M26: 999999999 | N26: 16383 | O26: =ROUND(TREND(($O$16:$O$24)^(1/3),$I$16:$I$24,I26)^3,-1) -> 5810 | P26: 999999999 | Q26: 7.4 | U26: 16 | W26: 15.25
B27: 2 | C27: 0.38 | D27: 0.2 | E27: 0.2 | F27: 0.84 | I27: 18 | J27: 999999999 | K27: 5600 | L27: 14700 | M27: 999999999 | N27: 21705 | O27: 7900 | P27: 999999999 | Q27: 7.4 | U27: 18 | W27: 17.25
B28: 2.5 | C28: 0.35 | D28: 0.19 | E28: 0.18 | F28: 0.79 | I28: 20 | J28: 999999999 | K28: 6900 | L28: 18100 | M28: 999999999 | N28: 27908 | O28: 10430 | P28: 999999999 | Q28: 7.4 | U28: 20 | W28: 19.25
B29: 3 | C29: 0.34 | D29: 0.18 | E29: 0.17 | F29: 0.76 | I29: 24 | J29: 999999999 | K29: 10000 | L29: 26800 | M29: 999999999 | N29: 43116 | O29: 17020 | P29: 999999999 | Q29: 7.4 | U29: 24 | W29: 23.25
B30: 4 | C30: 0.31 | D30: 0.18 | E30: 0.15 | F30: 0.7 | I30: 26 | J30: 999999999 | K30: 15400 | L30: 31000 | M30: 999999999 | N30: 60922 | O30: 21170 | P30: 999999999 | Q30: 999999999 | U30: 26 | W30: 25.25
B31: 5 | C31: 0.3 | D31: 0.17 | E31: 0.13 | F31: 0.66 | I31: 30 | J31: 999999999 | K31: 22400 | L31: 42000 | M31: 999999999 | N31: 86375 | O31: 31370 | P31: 999999999 | Q31: 999999999 | U31: 30 | W31: 29.25
B32: 6 | C32: 0.29 | D32: 0.17 | E32: 0.12 | F32: 0.62 | U32: Roughness | V32: 5e-06 | W32: 0.00015 | X32: inches
B33: 8 | C33: 0.27 | D33: 0.17 | E33: 0.1 | F33: 0.58 | H33: Property at T= | I33: 32°F | J33: 77°F | K33: 212°F
B34: 10 | C34: 0.25 | D34: 0.16 | E34: 0.09 | F34: 0.53 | H34: c (Btu/lbm-°F) | I34: 1.007 | J34: 0.998 | K34: 1.007
B35: 12 | C35: 0.24 | D35: 0.16 | E35: 0.09 | F35: 0.5 | H35: u (ft3/lbm) | I35: 0.016 | J35: 0.0161 | K35: 0.0167
B36: 14 | C36: 0.23 | D36: 0.15 | E36: 0.08 | F36: 0.5
B37: 16 | C37: 0.23 | D37: 0.15 | E37: 0.08 | F37: 0.47 | H37: T-cubed | I37: T-squared | J37: Temperature | K37: Viscosity
B38: 18 | C38: 0.22 | D38: 0.14 | E38: 0.07 | F38: 0.44 | H38: =J38^3 -> 64000 | I38: =J38^2 -> 1600 | J38: 40 | K38: 1.66e-05
B39: 20 | C39: 0.22 | D39: 0.14 | E39: 0.07 | F39: 0.42 | H39: =J39^3 -> 125000 | I39: =J39^2 -> 2500 | J39: 50 | K39: 1.41e-05
B40: 24 | C40: 0.21 | D40: 0.13 | E40: 0.06 | F40: 0.41 | H40: 343000 | I40: 4900 | J40: 70 | K40: 1.06e-05
B41: 26 | C41: 0.21 | D41: 0.13 | E41: 0.06 | F41: 0.4 | H41: 729000 | I41: 8100 | J41: 90 | K41: 8.26e-06
B42: 30 | C42: 0.2 | D42: 0.12 | E42: 0.05 | F42: 0.39 | H42: 1331000 | I42: 12100 | J42: 110 | K42: 6.67e-06
H43: 2197000 | I43: 16900 | J43: 130 | K43: 5.58e-06
H44: 3375000 | I44: 22500 | J44: 150 | K44: 4.76e-06
H45: 4913000 | I45: 28900 | J45: 170 | K45: 4.13e-06
H46: 6859000 | I46: 36100 | J46: 190 | K46: 3.62e-06
H47: 9528128 | I47: 44944 | J47: 212 | K47: 3.19e-06
B50: Piping Component Pricing
A51: column for vlookup | B51: 1 | C51: 2 | D51: 3 | E51: 4 | F51: 5 | G51: 6 | H51: 7 | I51: 8 | J51: 9 | K51: 10 | L51: 11 | M51: 12 | N51: 13 | O51: 14 | P51: 15 | Q51: 16 | R51: 17 | S51: 18 | T51: 19 | U51: 20 | V51: 21 | W51: 22 | X51: 23 | Y51: 24 | Z51: 25
B52: Use copper piping for sizes less than or equal to: | F52: 2.5 | G52: inches
B53: Use butterfly valve for sizes greater than or equal to: | F53: 3 | G53: inches
B54: Copper pipe pricing (type L)
C55: piping | E55: 90 ell | G55: 45 ell | I55: tee | K55: =J10 -> Circuit Setter | M55: =K10 -> Silent Check | O55: =L10 -> Swing Check | Q55: =M10 -> Ball | S55: =N10 -> Butterfly | U55: =O10 -> Wye-Strainer | W55: =P10 -> Suction Diffuser | Y55: =Q10 -> Flow Limiting Valve
B56: Size | C56: Mat ($/LF) | D56: Inst ($/LF) | E56: Mat ($/ea) | F56: Inst ($/ea) | G56: Mat ($/ea) | H56: Inst ($/ea) | I56: Mat ($/ea) | J56: Inst ($/ea) | K56: Mat ($/ea) | L56: Inst ($/ea) | M56: Mat ($/ea) | N56: Inst ($/ea) | O56: Mat ($/ea) | P56: Inst ($/ea) | Q56: Mat ($/ea) | R56: Inst ($/ea) | S56: Mat ($/ea) | T56: Inst ($/ea) | U56: Mat ($/ea) | V56: Inst ($/ea) | W56: Mat ($/ea) | X56: Inst ($/ea) | Y56: Mat ($/ea) | Z56: Inst ($/ea)
B57: 0.5 | C57: 2.26 | D57: 4.61 | E57: 0.92 | F57: 18.7 | G57: 1.67 | H57: 18.7 | I57: 1.56 | J57: 28.5 | K57: 40 | L57: 17.15 | M57: =TREND($M$59:$M$67,$B$59:$B$67,B57) -> 93.76615646 | N57: =L57 -> 17.15 | O57: 23.5 | P57: 15.55 | Q57: 10.3 | R57: 17 | S57: 999999999 | T57: 999999999 | U57: 19.2 | V57: 18.85 | W57: 999999999 | X57: 999999999 | Y57: 120.98 | Z57: =L57 -> 17.15
B58: 0.75 | C58: 3.51 | D58: 4.92 | E58: 2.04 | F58: 19.65 | G58: 2.93 | H58: 19.65 | I58: 3.75 | J58: 31 | K58: 44 | L58: 18.85 | M58: =TREND($M$59:$M$67,$B$59:$B$67,B58) -> 148.1581633 | N58: =L58 -> 18.85 | O58: 30 | P58: 18.7 | Q58: 16.95 | R58: 18.7 | S58: 999999999 | T58: 999999999 | U58: 21.5 | V58: 19.85 | W58: 999999999 | X58: 999999999 | Y58: 131.12 | Z58: 18.85
B59: 1 | C59: 5.1 | D59: 5.5 | E59: 5 | F59: 23.5 | G59: 7.35 | H59: 23.5 | I59: 11.6 | J59: 37.5 | K59: 54 | L59: 21 | M59: 260 | N59: 26.5 | O59: 42 | P59: 19.65 | Q59: 21.5 | R59: 19.65 | S59: 999999999 | T59: 999999999 | U59: 23 | V59: 22 | W59: 999999999 | X59: 999999999 | Y59: 142.72 | Z59: 21
B60: 1.25 | C60: 7.05 | D60: 6.45 | E60: 7.6 | F60: 25 | G60: 10.45 | H60: 25 | I60: 16.7 | J60: 41.5 | K60: 78 | L60: 25 | M60: 271 | N60: 31 | O60: 54.5 | P60: 25 | Q60: 32.5 | R60: 25 | S60: 999999999 | T60: 999999999 | U60: 51.5 | V60: 25 | W60: 999999999 | X60: 999999999 | Y60: 263.7 | Z60: 25
B61: 1.5 | C61: 9.05 | D61: 7.2 | E61: 11.8 | F61: 28.5 | G61: 12.6 | H61: 28.5 | I61: 25.5 | J61: 46.5 | K61: 91 | L61: 31.5 | M61: 325 | N61: 34 | O61: 72 | P61: 28.5 | Q61: 42.5 | R61: 28.5 | S61: 999999999 | T61: 999999999 | U61: 365 | V61: 34.5 | W61: 999999999 | X61: 999999999 | Y61: 263.7 | Z61: 31.5
B62: 2 | C62: 14.05 | D62: 8.9 | E62: 21.5 | F62: 34 | G62: 21 | H62: 34 | I62: 40 | J62: 53.5 | K62: 130 | L62: 37.5 | M62: 440 | N62: 41.5 | O62: 109 | P62: 34 | Q62: 51.5 | R62: 34 | S62: 227 | T62: 26.5 | U62: 440 | V62: 47 | W62: 250 | X62: 63 | Y62: 394.1 | Z62: 37.5
B63: 2.5 | C63: 21.5 | D63: 10.85 | E63: 45.5 | F63: 51.5 | G63: 45 | H63: 51.5 | I63: 95 | J63: 84 | K63: 370 | L63: 45 | M63: 495 | N63: 74.5 | O63: 258 | P63: 45 | Q63: 172 | R63: 41.5 | S63: 228 | T63: 74.5 | U63: 650 | V63: 136 | W63: 279 | X63: 104 | Y63: 587.54 | Z63: 45
B64: 3 | C64: 29.5 | D64: 12 | E64: 60.5 | F64: 61 | G64: 66.5 | H64: 51.5 | I64: 124 | J64: 96 | K64: 562 | L64: 170 | M64: 550 | N64: 84 | O64: 345 | P64: 51.5 | Q64: 261 | R64: 46.5 | S64: 240 | T64: 84 | U64: 805 | V64: 151 | W64: 279 | X64: 104 | Y64: 587.54 | Z64: 170
B65: 4 | C65: 50 | D65: 17.25 | E65: 156 | F65: 74.5 | G65: 142 | H65: 74.5 | I65: 299 | J65: 135 | K65: 867 | L65: 226 | M65: 810 | N65: 135 | O65: =O81 -> 1100 | P65: 224 | Q65: 999999999 | R65: 999999999 | S65: 271 | T65: 135 | U65: 1225 | V65: 226 | W65: 550 | X65: 194 | Y65: 1514.78 | Z65: 226
B66: 5 | C66: 107 | D66: 19.8 | E66: 650 | F66: 112 | G66: 550 | H66: 112 | I66: 980 | J66: 168 | K66: 1308 | L66: =TREND($L$73:$L$80,$B$73:$B$80,B66) -> 205.1776316 | M66: 1050 | N66: 174 | O66: 1400 | P66: 287 | Q66: 999999999 | R66: 999999999 | S66: 335 | T66: 209 | U66: 1225 | V66: 310 | W66: 725 | X66: 278 | Y66: 1514.78 | Z66: 205.1776316
B67: 6 | C67: 149 | D67: 26 | E67: 865 | F67: 116 | G67: 865 | H67: 116 | I67: 1325 | J67: 174 | K67: 1763 | L67: =TREND($L$73:$L$80,$B$73:$B$80,B67) -> 251.5565789 | M67: 1375 | N67: 209 | O67: 1700 | P67: 350 | Q67: 999999999 | R67: 999999999 | S67: 375 | T67: 209 | U67: 2325 | V67: 350 | W67: 755 | X67: 320 | Y67: 1514.78 | Z67: 251.5565789
B68: 8 | C68: 208 | D68: 29 | E68: 3200 | F68: 131 | G68: 2950 | H68: 131 | I68: 5150 | J68: 209 | K68: 3313 | L68: =TREND($L$73:$L$80,$B$73:$B$80,B68) -> 344.3144737 | M68: =M84 -> 2225 | N68: =N84 -> 232 | O68: 2800 | P68: 420 | Q68: 999999999 | R68: 999999999 | S68: 485 | T68: 232 | U68: 2550 | V68: 405 | W68: 1025 | X68: 390 | Y68: 2338.04 | Z68: 344.3144737
B70: Steel pipe pricing
C71: piping | E71: 90 ell | G71: 45 ell | I71: tee | K71: =J10 -> Circuit Setter | M71: =K10 -> Silent Check | O71: =L10 -> Swing Check | Q71: =M10 -> Ball | S71: =N10 -> Butterfly | U71: =O10 -> Wye-Strainer | W71: =P10 -> Suction Diffuser | Y71: =Q10 -> Flow Limiting Valve
B72: Size | C72: Mat ($/LF) | D72: Inst ($/LF) | E72: Mat ($/ea) | F72: Inst ($/ea) | G72: Mat ($/ea) | H72: Inst ($/ea) | I72: Mat ($/ea) | J72: Inst ($/ea) | K72: Mat ($/ea) | L72: Inst ($/ea) | M72: Mat ($/ea) | N72: Inst ($/ea) | O72: Mat ($/ea) | P72: Inst ($/ea) | Q72: Mat ($/ea) | R72: Inst ($/ea) | S72: Mat ($/ea) | T72: Inst ($/ea) | U72: Mat ($/ea) | V72: Inst ($/ea) | W72: Mat ($/ea) | X72: Inst ($/ea) | Y72: Mat ($/ea) | Z72: Inst ($/ea)
B73: 0.5 | C73: 2.18 | D73: 5.95 | E73: 27 | F73: =42+3.51 -> 45.51 | G73: 37.5 | H73: =42+3.51 -> 45.51 | I73: 68 | J73: =67.5+5.6 -> 73.1 | K73: 40 | L73: 17.15 | M73: =M57 -> 93.76615646 | N73: =N57 -> 17.15 | O73: =TREND($O$78:$O$81,$B$78:$B$81,B73) -> 280.1428571 | P73: =L73 -> 17.15 | Q73: 62.5 | R73: =35.5+2.96 -> 38.46 | S73: 999999999 | T73: 999999999 | U73: 7.75 | V73: 18.85 | W73: 999999999 | X73: 999999999 | Y73: =Y57 -> 120.98 | Z73: =L73 -> 17.15
B74: 0.75 | C74: 2.58 | D74: 6.1 | E74: 27 | F74: =42+3.51 -> 45.51 | G74: 37.5 | H74: =42+3.51 -> 45.51 | I74: 68 | J74: =67.5+5.6 -> 73.1 | K74: 44 | L74: 18.85 | M74: =M58 -> 148.1581633 | N74: =N58 -> 18.85 | O74: =TREND($O$78:$O$81,$B$78:$B$81,B74) -> 335.7857143 | P74: =L74 -> 18.85 | Q74: 83 | R74: =35.5+2.96 -> 38.46 | S74: 999999999 | T74: 999999999 | U74: 9.45 | V74: 21 | W74: 999999999 | X74: 999999999 | Y74: =Y58 -> 131.12 | Z74: =L74 -> 18.85
B75: 1 | C75: 3.7 | D75: =7.25+0.6 -> 7.85 | E75: 13.1 | F75: =42+3.51 -> 45.51 | G75: 13.45 | H75: =42+3.51 -> 45.51 | I75: 34.5 | J75: =67.5+5.6 -> 73.1 | K75: 54 | L75: 21 | M75: 340 | N75: 26.5 | O75: 510 | P75: 37.5 | Q75: 103 | R75: =45+3.74 -> 48.74 | S75: 999999999 | T75: 999999999 | U75: 12.9 | V75: 23.5 | W75: 999999999 | X75: 999999999 | Y75: 142.72 | Z75: 21
B76: 1.25 | C76: 4.93 | D76: =8+0.67 -> 8.67 | E76: 13.1 | F76: =48+4.01 -> 52.01 | G76: 13.45 | H76: =48+4.01 -> 52.01 | I76: 42 | J76: =74.5+6.25 -> 80.75 | K76: 78 | L76: 25 | M76: 375 | N76: 31 | O76: =TREND($O$78:$O$81,$B$78:$B$81,B76) -> 447.0714286 | P76: =L76 -> 25 | Q76: 138 | R76: =51.5+4.32 -> 55.82 | S76: 999999999 | T76: 999999999 | U76: 17.2 | V76: 25 | W76: 999999999 | X76: 999999999 | Y76: 263.7 | Z76: 25
B77: 1.5 | C77: 5.65 | D77: =8.85+0.74 -> 9.59 | E77: 13.1 | F77: =51.1+4.32 -> 55.42 | G77: 13.45 | H77: =51.5+4.32 -> 55.82 | I77: 42 | J77: =84+7 -> 91 | K77: 91 | L77: 31.5 | M77: 410 | N77: 34 | O77: =TREND($O$78:$O$81,$B$78:$B$81,B77) -> 502.7142857 | P77: =L77 -> 31.5 | Q77: 180 | R77: =61+5.1 -> 66.1 | S77: 999999999 | T77: 999999999 | U77: 101 | V77: 34.5 | W77: 999999999 | X77: 999999999 | Y77: 263.7 | Z77: 31.5
B78: 2 | C78: 7.4 | D78: =11+0.92 -> 11.92 | E78: 14.1 | F78: =67.5+5.6 -> 73.1 | G78: 13.45 | H78: =67.5+5.6 -> 73.1 | I78: 34 | J78: =112+9.35 -> 121.35 | K78: 130 | L78: 37.5 | M78: 495 | N78: 41.5 | O78: 645 | P78: 46.5 | Q78: 255 | R78: =79+6.6 -> 85.6 | S78: 227 | T78: 26.5 | U78: 106 | V78: 47 | W78: =W62 -> 250 | X78: 63 | Y78: 394.1 | Z78: 37.5
B79: 2.5 | C79: 9.8 | D79: =14.3+1.19 -> 15.49 | E79: 16.95 | F79: =84+7 -> 91 | G79: 15.7 | H79: =84+7 -> 91 | I79: 46.5 | J79: =135+11.25 -> 146.25 | K79: 370 | L79: 45 | M79: 595 | N79: 74.5 | O79: 745 | P79: 135 | Q79: 999999999 | R79: 999999999 | S79: 228 | T79: 74.5 | U79: 128 | V79: 136 | W79: 279 | X79: 104 | Y79: 587.54 | Z79: 45
B80: 3 | C80: 12.5 | D80: =15.65+1.31 -> 16.96 | E80: 21 | F80: =96+8 -> 104 | G80: 16.95 | H80: =96+8 -> 104 | I80: 51.5 | J80: =168+14.05 -> 182.05 | K80: 562 | L80: 170 | M80: 695 | N80: 84 | O80: 745 | P80: 149 | Q80: 999999999 | R80: 999999999 | S80: 240 | T80: 84 | U80: 142 | V80: 151 | W80: 279 | X80: 104 | Y80: 587.54 | Z80: 170
B81: 4 | C81: 16.5 | D81: =18.2+1.52 -> 19.72 | E81: 34 | F81: =135+11.25 -> 146.25 | G81: 30 | H81: =135+11.25 -> 146.25 | I81: 72.5 | J81: =224+18.7 -> 242.7 | K81: 867 | L81: 226 | M81: 945 | N81: 135 | O81: 1100 | P81: 224 | Q81: 999999999 | R81: 999999999 | S81: 271 | T81: 135 | U81: 181 | V81: 226 | W81: 550 | X81: 194 | Y81: 1514.78 | Z81: 226
B82: 5 | C82: 24 | D82: =21+1.76 -> 22.76 | E82: 71 | F82: =168+14.05 -> 182.05 | G82: 46 | H82: =168+14.05 -> 182.05 | I82: 120 | J82: =269+22.5 -> 291.5 | K82: 1308 | L82: =TREND($L$73:$L$80,$B$73:$B$80,B82) -> 205.1776316 | M82: 1175 | N82: 174 | O82: =(O81+O83)/2 -> 1400 | P82: =(P81+P83)/2 -> 287 | Q82: 999999999 | R82: 999999999 | S82: 335 | T82: 209 | U82: 283 | V82: 310 | W82: 725 | X82: 278 | Y82: 1514.78 | Z82: 205.1776316
B83: 6 | C83: 30 | D83: =29+1.56 -> 30.56 | E83: 74 | F83: =209+11.25 -> 220.25 | G83: 60 | H83: =209+11.25 -> 220.25 | I83: 124 | J83: =350+18.7 -> 368.7 | K83: 1763 | L83: =TREND($L$73:$L$80,$B$73:$B$80,B83) -> 251.5565789 | M83: 1525 | N83: 209 | O83: 1700 | P83: 350 | Q83: 999999999 | R83: 999999999 | S83: 375 | T83: 209 | U83: 283 | V83: 350 | W83: 755 | X83: 320 | Y83: 1514.78 | Z83: 251.5565789
B84: 8 | C84: 47 | D84: =36+1.94 -> 37.94 | E84: 140 | F84: =279+15 -> 294 | G84: 100 | H84: 279.15 | I84: 219 | J84: =420+22.5 -> 442.5 | K84: 3313 | L84: =TREND($L$73:$L$80,$B$73:$B$80,B84) -> 344.3144737 | M84: 2225 | N84: 232 | O84: 2800 | P84: 420 | Q84: 999999999 | R84: 999999999 | S84: 485 | T84: 232 | U84: 580 | V84: 420 | W84: 1025 | X84: 390 | Y84: 2338.04 | Z84: 344.3144737
B85: 10 | C85: 60 | D85: =43.5+2.34 -> 45.84 | E85: 282 | F85: =350+18.7 -> 368.7 | G85: 200 | H85: =350+18.7 -> 368.7 | I85: 435 | J85: =525+28 -> 553 | K85: 4650 | L85: =TREND($L$73:$L$80,$B$73:$B$80,B85) -> 437.0723684 | M85: 3125 | N85: 261 | O85: 4150 | P85: 475 | Q85: 999999999 | R85: 999999999 | S85: 620 | T85: 261 | U85: 1100 | V85: 530 | W85: 2475 | X85: 440 | Y85: 2654.16 | Z85: 437.0723684
B86: 12 | C86: 75 | D86: =55+2.96 -> 57.96 | E86: 420 | F86: =420+22.5 -> 442.5 | G86: 282 | H86: =420+22.5 -> 442.5 | I86: 605 | J86: =655+35 -> 690 | K86: 10133 | L86: =TREND($L$73:$L$80,$B$73:$B$80,B86) -> 529.8302632 | M86: 4825 | N86: 350 | O86: 5900 | P86: 615 | Q86: 999999999 | R86: 999999999 | S86: 925 | T86: 350 | U86: 1675 | V86: 620 | W86: 3475 | X86: 585 | Y86: 3401.69 | Z86: 529.8302632
B87: 14 | C87: 85 | D87: =69.5+3.74 -> 73.24 | E87: 430 | F87: =525+28 -> 553 | G87: 380 | H87: =525+28 -> 553 | I87: 985 | J87: =805+43 -> 848 | K87: 999999999 | L87: 999999999 | M87: 7300 | N87: 455 | O87: 8525 | P87: 805 | Q87: 999999999 | R87: 999999999 | S87: 1225 | T87: 455 | U87: 3075 | V87: 810 | W87: 5075 | X87: 705 | Y87: 4445.58 | Z87: =TREND(Z$73:Z$86,$B$73:$B$86,B87) -> 626.978211
B88: 16 | C88: 114 | D88: =80.5+4.32 -> 84.82 | E88: 790 | F88: =695+37.5 -> 732.5 | G88: 670 | H88: =695+37.5 -> 732.5 | I88: 1200 | J88: =1050+56 -> 1106 | K88: 999999999 | L88: 999999999 | M88: 10200 | N88: 600 | O88: 8550 | P88: 1050 | Q88: 999999999 | R88: 999999999 | S88: 1600 | T88: 600 | U88: 4350 | V88: 1050 | W88: 999999999 | X88: 999999999 | Y88: 6191.38 | Z88: =TREND(Z$73:Z$86,$B$73:$B$86,B88) -> 719.6532093
B89: 18 | C89: 120 | D89: =95+5.1 -> 100.1 | E89: 1050 | F89: =835+45 -> 880 | G89: 955 | H89: =835+45 -> 880 | I89: 1875 | J89: =1300+70 -> 1370 | K89: 999999999 | L89: 999999999 | M89: 10700 | N89: 695 | O89: 10400 | P89: 805 | Q89: 999999999 | R89: 999999999 | S89: 2075 | T89: 695 | U89: =24.528*(B89)^2 - 144.77*(B89) + 223.68 -> 5564.892 | V89: =TREND($V$73:$V$88,$B$73:$B$88,B89) -> 1073.37317 | W89: 999999999 | X89: 999999999 | Y89: 8922.05 | Z89: =TREND(Z$73:Z$86,$B$73:$B$86,B89) -> 812.3282077
B90: 20 | C90: 146 | D90: =116+6.25 -> 122.25 | E90: 1500 | F90: =910+49 -> 959 | G90: 990 | H90: =910+49 -> 959 | I90: 2900 | J90: =1400+75 -> 1475 | K90: 999999999 | L90: 999999999 | M90: =TREND($M$86:$M$89,$B$86:$B$89,B90) -> 13387.5 | N90: =TREND($N$86:$N$89,$B$86:$B$89,B90) -> 820 | O90: =1.409*(B90)^3 + 2.3701*(B90)^2 + 31.065*(B90) + 105.57 -> 12946.91 | P90: =(P89+P91)/2 -> 1102.5 | Q90: 999999999 | R90: 999999999 | S90: 2550 | T90: 1050 | U90: =24.528*(B90)^2 - 144.77*(B90) + 223.68 -> 7139.48 | V90: =TREND($V$73:$V$88,$B$73:$B$88,B90) -> 1197.075122 | W90: 999999999 | X90: 999999999 | Y90: 11209.68 | Z90: =TREND(Z$73:Z$86,$B$73:$B$86,B90) -> 905.0032061
B91: 24 | C91: 186 | D91: =131+7 -> 138 | E91: 2000 | F91: =1025+55 -> 1080 | G91: 1500 | H91: =995+53.5 -> 1048.5 | I91: 3750 | J91: =1500+80 -> 1580 | K91: 999999999 | L91: 999999999 | M91: =TREND($M$86:$M$89,$B$86:$B$89,B91) -> 17492.5 | N91: =TREND($N$86:$N$89,$B$86:$B$89,B91) -> 1056 | O91: 19700 | P91: 1400 | Q91: 999999999 | R91: 999999999 | S91: 3575 | T91: 1400 | U91: =24.528*(B91)^2 - 144.77*(B91) + 223.68 -> 10877.328 | V91: =TREND($V$73:$V$88,$B$73:$B$88,B91) -> 1444.479027 | W91: 999999999 | X91: 999999999 | Y91: 13497.32 | Z91: =TREND(Z$73:Z$86,$B$73:$B$86,B91) -> 1090.353203
B92: 26 | C92: 345 | D92: =139+7.5 -> 146.5 | E92: 2500 | F92: 1200 | G92: 1650 | H92: =1225+66 -> 1291 | I92: 4125 | J92: =1900+102 -> 2002 | K92: 999999999 | L92: 999999999 | M92: =TREND($M$86:$M$89,$B$86:$B$89,B92) -> 19545 | N92: =TREND($N$86:$N$89,$B$86:$B$89,B92) -> 1174 | O92: =1.409*(B92)^3 + 2.3701*(B92)^2 + 31.065*(B92) + 105.57 -> 27280.0316 | P92: =TREND($P$73:$P$86,$B$73:$B$86,B92) -> 1375.297777 | Q92: 999999999 | R92: 999999999 | S92: =6.9524*(B92)^2 - 27.085*(B92) + 260.97 -> 4256.5824 | T92: =2.6448*(B92)^2 - 10.137*(B92) + 110.22 -> 1634.5428 | U92: =24.528*(B92)^2 - 144.77*(B92) + 223.68 -> 13040.588 | V92: =TREND($V$73:$V$88,$B$73:$B$88,B92) -> 1568.180979 | W92: 999999999 | X92: 999999999 | Y92: 999999999 | Z92: 999999999
B93: 30 | C93: 375 | D93: =174+9.35 -> 183.35 | E93: 3000 | F93: 1350 | G93: 1825 | H93: =2325+125 -> 2450 | I93: 4550 | J93: =3475+187 -> 3662 | K93: 999999999 | L93: 999999999 | M93: =TREND($M$86:$M$89,$B$86:$B$89,B93) -> 23650 | N93: =TREND($N$86:$N$89,$B$86:$B$89,B93) -> 1410 | O93: =1.409*(B93)^3 + 2.3701*(B93)^2 + 31.065*(B93) + 105.57 -> 41213.61 | P93: =TREND($P$73:$P$86,$B$73:$B$86,B93) -> 1589.622983 | Q93: 999999999 | R93: 999999999 | S93: =6.9524*(B93)^2 - 27.085*(B93) + 260.97 -> 5705.58 | T93: =2.6448*(B93)^2 - 10.137*(B93) + 110.22 -> 2186.43 | U93: =24.528*(B93)^2 - 144.77*(B93) + 223.68 -> 17955.78 | V93: =TREND($V$73:$V$88,$B$73:$B$88,B93) -> 1815.584884 | W93: 999999999 | X93: 999999999 | Y93: 999999999 | Z93: 999999999
B95: Insulation Pricing: Materials | I95: Insulation Pricing: Installation | P95: Insulation thickness per T24 | W95: Motor and VFD drive cost | AE95: Motor and VFD drive cost per HP
B96: Insul. Thickness | C96: 0.5 | D96: 1 | E96: 1.5 | F96: 2 | I96: Insul. Thickness | J96: 0.5 | K96: 1 | L96: 1.5 | M96: 2 | P96: Pipe diameter is less than: (in inches) | W96: HP | X96: Pump | AA96: VFD | AE96: HP | AF96: Pump | AH96: VFD
B97: Pipe size | C97: 2 | D97: 3 | E97: 4 | F97: 5 | I97: Pipe size | J97: 2 | K97: 3 | L97: 4 | M97: 5 | W97: Greater than | X97: Materials | Y97: Installation | Z97: Total | AA97: Materials | AB97: Installation | AC97: Total | AF97: Materials | AG97: Installation | AH97: Materials | AI97: Installation
B98: 0.375 | C98: =TREND(C99:C105,$B$99:$B$105,$B98) -> 0.731257485 | D98: =TREND(D99:D105,$B$99:$B$105,$B98) -> 0.8590868263 | E98: =TREND(E99:E105,$B$99:$B$105,$B98) -> 1.579580838 | F98: =TREND(F99:F105,$B$99:$B$105,$B98) -> 2.545598802 | I98: 0.375 | J98: =TREND(J99:J105,$B$99:$B$105,$I98) -> 2.490314371 | K98: =TREND(K99:K105,$B$99:$B$105,$I98) -> 2.59505988 | L98: =TREND(L99:L105,$B$99:$B$105,$I98) -> 2.704041916 | M98: =TREND(M99:M105,$B$99:$B$105,$I98) -> 2.826991018 | P98: 0 | Q98: 1 | R98: 2 | S98: 4 | T98: 6 | U98: 8 | W98: 0 | X98: 272 | Y98: 112 | Z98: =SUM(X98:Y98) -> 384 | AA98: 828.7712288 | AB98: 355 | AC98: =SUM(AA98:AB98) -> 1183.771229
B99: 0.5 | C99: 0.73 | D99: 0.89 | E99: 1.67 | F99: 2.6 | I99: 0.5 | J99: 2.48 | K99: 2.59 | L99: 2.7 | M99: 2.82 | O99: Temp is less than °F | P99: 2 | Q99: 3 | R99: 4 | S99: 5 | T99: 6 | U99: 7 | W99: 0.08333333333 | X99: 455 | Y99: 112 | Z99: 567 | AA99: 828.7712288 | AB99: 355 | AC99: =SUM(AA99:AB99) -> 1183.771229 | AE99: =W99 -> 0.08333333333 | AF99: =X99/$W99 -> 5460 | AG99: =Y99/$W99 -> 1344 | AH99: =AA99/$W99 -> 9945.254745 | AI99: =AB99/$W99 -> 4260
B100: 0.75 | C100: 0.83 | D100: 0.97 | E100: 1.68 | F100: 2.68 | I100: 0.75 | J100: 2.59 | K100: 2.7 | L100: 2.82 | M100: 2.96 | O100: 0 | P100: 1 | Q100: 1 | R100: 1.5 | S100: 1.5 | T100: 1.5 | U100: 1.5 | W100: 0.125 | X100: 555 | Y100: 135 | Z100: 690 | AA100: 828.7712288 | AB100: 355 | AC100: 1183.771229 | AE100: 0.125 | AF100: 4440 | AG100: 1080 | AH100: 6630.16983 | AI100: 2840
B101: 1 | C101: 0.86 | D101: 1.04 | E101: 1.8 | F101: 2.86 | I101: 1 | J101: 2.7 | K101: 2.82 | L101: 2.96 | M101: 3.1 | O101: 40 | P101: 0.5 | Q101: 0.5 | R101: 0.5 | S101: 1 | T101: 1 | U101: 1 | W101: 0.1666666667 | X101: 705 | Y101: 135 | Z101: 840 | AA101: 828.7712288 | AB101: 355 | AC101: 1183.771229 | AE101: 0.1666666667 | AF101: 4230 | AG101: 810 | AH101: 4972.627373 | AI101: 2130
B102: 1.25 | C102: 0.91 | D102: 1.12 | E102: 1.96 | F102: 3.02 | I102: 1.25 | J102: 2.82 | K102: 2.96 | L102: 3.1 | M102: 3.27 | O102: 60 | P102: 0 | Q102: 0 | R102: 0 | S102: 0 | T102: 0 | U102: 0 | W102: 0.25 | X102: 980 | Y102: 168 | Z102: 1148 | AA102: 828.7712288 | AB102: 355 | AC102: 1183.771229 | AE102: 0.25 | AF102: 3920 | AG102: 672 | AH102: 3315.084915 | AI102: 1420
B103: 1.5 | C103: 1.05 | D103: 1.21 | E103: 2.05 | F103: 3.14 | I103: 1.5 | J103: 2.82 | K103: 2.96 | L103: 3.1 | M103: 3.27 | O103: 105 | P103: 1 | Q103: 1 | R103: 1 | S103: 1 | T103: 1.5 | U103: 1.5 | W103: 0.3333333333 | X103: 1025 | Y103: 168 | Z103: 1193 | AA103: 828.7712288 | AB103: 355 | AC103: 1183.771229 | AE103: 0.3333333333 | AF103: 3075 | AG103: 504 | AH103: 2486.313686 | AI103: 1065
B104: 2 | C104: 1.12 | D104: 1.31 | E104: 2.26 | F104: 3.32 | I104: 2 | J104: 2.96 | K104: 3.1 | L104: 3.27 | M104: 3.45 | O104: 140 | P104: 1.5 | Q104: 1.5 | R104: 1.5 | S104: 1.5 | T104: 1.5 | U104: 1.5 | W104: 0.5 | X104: 1175 | Y104: 168 | Z104: 1343 | AA104: 828.7712288 | AB104: 355 | AC104: 1183.771229 | AE104: 0.5 | AF104: 2350 | AG104: 336 | AH104: 1657.542458 | AI104: 710
B105: 2.5 | C105: 1.17 | D105: 1.49 | E105: 2.42 | F105: 3.57 | I105: 2.5 | J105: 3.1 | K105: 3.27 | L105: 3.45 | M105: 3.65 | O105: 200 | P105: 1.5 | Q105: 1.5 | R105: 1.5 | S105: 2 | T105: 2 | U105: 3.5 | W105: 0.75 | X105: 1700 | Y105: 168 | Z105: 1868 | AA105: 868.3816184 | AB105: 355 | AC105: 1223.381618 | AE105: 0.75 | AF105: 2266.666667 | AG105: 224 | AH105: 1157.842158 | AI105: 473.3333333
B106: 3 | C106: =TREND($C$99:$C$105,$B$99:$B$105,B106) -> 1.323532934 | D106: 1.59 | E106: 2.54 | F106: 3.79 | I106: 3 | J106: =TREND($J$99:$J$105,$I$99:$I$105,I106) -> 3.268383234 | K106: 3.45 | L106: 3.65 | M106: 3.88 | O106: 250 | P106: 2 | Q106: 2 | R106: 2.5 | S106: 2.5 | T106: 3.5 | U106: 3.5 | W106: 1 | X106: 1550 | Y106: 224 | Z106: 1774 | AA106: 1465.584416 | AB106: 355 | AC106: 1820.584416 | AE106: 1 | AF106: 1550 | AG106: 224 | AH106: 1465.584416 | AI106: 355
B107: 4 | C107: =TREND($C$99:$C$105,$B$99:$B$105,B107) -> 1.549161677 | D107: 2.11 | E107: 2.88 | F107: 4.42 | I107: 4 | J107: =TREND($J$99:$J$105,$I$99:$I$105,I107) -> 3.564790419 | K107: 4.14 | L107: 4.43 | M107: 4.78 | O107: 350 | P107: 2.5 | Q107: 2.5 | R107: 2.5 | S107: 3 | T107: 3.5 | U107: 3.5 | W107: 1.5 | X107: 1825 | Y107: 224 | Z107: 2049 | AA107: 1465.584416 | AB107: 355 | AC107: 1820.584416 | AE107: 1.5 | AF107: 1216.666667 | AG107: 149.3333333 | AH107: 977.0562771 | AI107: 236.6666667
B108: 5 | C108: 1.774790419 | D108: 2.38 | E108: 3.23 | F108: 5.05 | I108: 5 | J108: 3.861197605 | K108: 4.43 | L108: 4.78 | M108: 5.15 | W108: 2 | X108: 1900 | Y108: 292 | Z108: 2192 | AA108: 1525 | AB108: 455 | AC108: =SUM(AA108:AB108) -> 1980 | AE108: 2 | AF108: 950 | AG108: 146 | AH108: 762.5 | AI108: 227.5
B109: 6 | C109: 2.000419162 | D109: 2.52 | E109: 3.41 | F109: 5.2 | I109: 6 | J109: 4.15760479 | K109: 5.15 | L109: 5.65 | M109: 6.2 | W109: 3 | X109: 2350 | Y109: 375 | Z109: 2725 | AA109: 1675 | AB109: 455 | AC109: =SUM(AA109:AB109) -> 2130 | AE109: 3 | AF109: 783.3333333 | AG109: 125 | AH109: 558.3333333 | AI109: 151.6666667
B110: 8 | C110: 2.451676647 | D110: 4.12 | E110: 4.78 | F110: 6.35 | I110: 8 | J110: 4.750419162 | K110: 6.2 | L110: 6.9 | M110: 7.75 | W110: 5 | X110: 2925 | Y110: 395 | Z110: 3320 | AA110: 1975 | AB110: 545 | AC110: 2520 | AE110: 5 | AF110: 585 | AG110: 79 | AH110: 395 | AI110: 109
B111: 10 | C111: 2.902934132 | D111: 4.37 | E111: 5.15 | F111: 7.6 | I111: 10 | J111: 5.343233533 | K111: 6.9 | L111: 7.75 | M111: 8.85 | W111: 7.5 | X111: 5800 | Y111: 515 | Z111: 6315 | AA111: 1975 | AB111: 545 | AC111: 2520 | AE111: =W111 -> 7.5 | AF111: =X111/$W111 -> 773.3333333 | AG111: =Y111/$W111 -> 68.66666667 | AH111: =AA111/$W111 -> 263.3333333 | AI111: =AB111/$W111 -> 72.66666667
B112: 12 | C112: 3.354191617 | D112: 4.76 | E112: 5.85 | F112: 8.5 | I112: 12 | J112: 5.936047904 | K112: 7.75 | L112: 8.3 | M112: 9.55 | W112: 15 | X112: 7025 | Y112: 655 | Z112: 7680 | AA112: 3375 | AB112: 820 | AC112: 4195 | AE112: 15 | AF112: =X112/$W112 -> 468.3333333 | AG112: =Y112/$W112 -> 43.66666667 | AH112: =AA112/$W112 -> 225 | AI112: =AB112/$W112 -> 54.66666667
B113: 14 | C113: 3.805449102 | D113: 5.5 | E113: 6.7 | F113: 10.55 | I113: 14 | J113: 6.528862275 | K113: 7.75 | L113: 8.85 | M113: 10.35 | W113: 20 | X113: 7250 | Y113: 680 | Z113: 7930 | AA113: 3925 | AB113: 1100 | AC113: 5025 | AE113: 20 | AF113: 362.5 | AG113: 34 | AH113: 196.25 | AI113: 55
B114: 16 | C114: 4.256706587 | D114: 7 | E114: 8.75 | F114: 11.6 | I114: 16 | J114: 7.121676647 | K114: 8.85 | L114: 9.55 | M114: 11.3 | W114: 25 | X114: 9475 | Y114: 870 | Z114: 10345 | AA114: 4775 | AB114: 1100 | AC114: 5875 | AE114: 25 | AF114: 379 | AG114: 34.8 | AH114: 191 | AI114: 44
B115: 18 | C115: 4.707964072 | D115: 7.75 | E115: 9.85 | F115: 12.95 | I115: 18 | J115: 7.714491018 | K115: 8.85 | L115: 10.35 | M115: 12.4 | W115: 40 | X115: 11900 | Y115: 1000 | Z115: 12900 | AA115: 7650 | AB115: 1375 | AC115: 9025 | AE115: 40 | AF115: 297.5 | AG115: 25 | AH115: 191.25 | AI115: 34.375
B116: 20 | C116: 5.159221557 | D116: 8.65 | E116: 10.05 | F116: 14.65 | I116: 20 | J116: 8.307305389 | K116: 10.35 | L116: 11.3 | M116: 13.8 | W116: 50 | X116: 16200 | Y116: 1250 | Z116: 17450 | AA116: 8375 | AB116: 1600 | AC116: 9975 | AE116: 50 | AF116: 324 | AG116: 25 | AH116: 167.5 | AI116: 32
B117: 24 | C117: 6.061736527 | D117: 10.55 | E117: 12.3 | F117: 15.75 | I117: 24 | J117: 9.492934132 | K117: 10.35 | L117: 12.4 | M117: 15.5 | W117: 75 | X117: 18000 | Y117: 1475 | Z117: 19475 | AA117: 11700 | AB117: 1800 | AC117: 13500 | AE117: 75 | AF117: 240 | AG117: 19.66666667 | AH117: 156 | AI117: 24
B118: 26 | C118: 6.512994012 | D118: =TREND($D$99:$D$117,$B$99:$B$117,B118) -> 10.91531171 | E118: =TREND($E$99:$E$117,$B$99:$B$117,B118) -> 12.79820531 | F118: =TREND($F$99:$F$117,$B$99:$B$117,B118) -> 17.34787634 | I118: 26 | J118: 10.0857485 | K118: =TREND($J$99:$J$117,$I$99:$I$117,I118) -> 10.0857485 | L118: =TREND($L$99:$L$117,$I$99:$I$117,I118) -> 13.94633852 | M118: =TREND($M$99:$M$117,$I$99:$I$117,I118) -> 17.04162694 | W118: 100 | X118: 22300 | Y118: 1650 | Z118: 23950 | AA118: 12900 | AB118: 1800 | AC118: 14700 | AE118: 100 | AF118: 223 | AG118: 16.5 | AH118: 129 | AI118: 18
B119: 30 | C119: 7.415508982 | D119: =TREND($D$99:$D$117,$B$99:$B$117,B119) -> 12.51834129 | E119: =TREND($E$99:$E$117,$B$99:$B$117,B119) -> 14.58439864 | F119: =TREND($F$99:$F$117,$B$99:$B$117,B119) -> 19.69341655 | I119: 30 | J119: 11.27137725 | K119: =TREND($J$99:$J$117,$I$99:$I$117,I119) -> 11.27137725 | L119: =TREND($L$99:$L$117,$I$99:$I$117,I119) -> 15.68416647 | M119: =TREND($M$99:$M$117,$I$99:$I$117,I119) -> 19.26816873 | W119: 150 | X119: 33100 | Y119: 2150 | Z119: 35250 | AA119: 20500 | AB119: 2125 | AC119: 22625 | AE119: 150 | AF119: 220.6666667 | AG119: 14.33333333 | AH119: 136.6666667 | AI119: 14.16666667
W120: 200 | X120: =BHP_TOTAL*AF120 ->  | Y120: =BHP_TOTAL*AG120 ->  | Z120: =SUM(X120:Y120) ->  | AA120: =BHP_TOTAL*AH120 ->  | AB120: =BHP_TOTAL*10 ->  | AC120: =SUM(AA120:AB120) ->  | AE120: 200 | AF120: =AF119 -> 220.6666667 | AG120: =AG119 -> 14.33333333 | AH120: =AH119 -> 136.6666667 | AI120: =AI119 -> 14.16666667
B123: Noise/Erosion Sensitivity
B125: Noise Sensitivity | G125: Noise sensitivity eqn | L125: Erosion Max Velocity
B126: Pipe OD | C126: Pipe ID | D126: Max fps | G126: Max V for size: | H126: 3 | I126: 6 | J126: fps | L126: Hours/yr operation | M126: Max v [fps]
B127: =U11 -> 0.5 | C127: =V11 -> 0.545 | D127: =10^$H$131*10^$H$130^(LOG(C127)) -> 2.542354001 | G127: Max V for size: | H127: 10 | I127: 11 | J127: fps | L127: 0 | M127: 15
B128: =U12 -> 0.75 | C128: =V12 -> 0.785 | D128: =10^$H$131*10^$H$130^(LOG(C128)) -> 3.055053115 | L128: 2000 | M128: 14
B129: 1 | C129: =V13 -> 1.025 | D129: 3.494179024 | G129: log(fps) =m* log(Pipe OD) + b | L129: 3000 | M129: 13
B130: 1.25 | C130: =V14 -> 1.265 | D130: 3.884573746 | G130: m | H130: =(LOG($I$127)-LOG($I$126))/(LOG(H127)-LOG(H126)) -> 0.5034464245 | L130: 4000 | M130: 12
B131: 1.5 | C131: =V15 -> 1.505 | D131: 4.239614577 | G131: b | H131: =LOG($I$127)-$H$130*LOG(H127) -> 0.5379462606 | L131: 6000 | M131: 10
B132: 2 | C132: =V16 -> 1.985 | D132: 4.873631911
B133: 2.5 | C133: =W17 -> 2.469 | D133: 5.439507751 | G133: fps = 10^0.5379*10^(0.5034*log(Pipe ID))
B134: 3 | C134: =W18 -> 3.068 | D134: 6.068087695
B135: 4 | C135: 4.026 | D135: 6.957733622
B136: 5 | C136: 5.047 | D136: 7.796251924
B137: 6 | C137: 6.065 | D137: 8.551841253
B138: 8 | C138: 7.981 | D138: 9.8193737
B139: 10 | C139: 10.02 | D139: 11.01107033
B140: 12 | C140: 12 | D140: 12.05747029
B141: 14 | C141: 13.25 | D141: 12.67423724
B142: =U26 -> 16 | C142: 15.25 | D142: 13.6037685
B143: 18 | C143: 17.25 | D143: 14.47449134
B144: 20 | C144: 19.25 | D144: 15.29636792
B145: 24 | C145: 23.25 | D145: 16.82158881
B146: 26 | C146: 25.25 | D146: 17.53516028
B147: 30 | C147: =W31 -> 29.25 | D147: 18.88261281
B150: System and Location Defaults
B152: Default Water Temperatures
B153: CHW | C153: 50 | D153: °F
B154: HW | C154: 160 | D154: °F
B155: CW | C155: 80 | D155: °F
B157: Variable Flow/Variable Speed Diversity Factor
B158: CFCS | C158: VFCS | D158: VFVSFSP | E158: VFVSRSP
B159: 1 | C159: 0.6 | D159: 0.3 | E159: 0.2
B160: CFCS | C160: Contstant Flow/ Constant Speed
B161: VFCS | C161: Variable Flow/ Constant Speed
B162: VFVSFSP | C162: Variable Flow/ Variable Speed with Fixed Set Point
B163: VFVSRSP | C163: Variable Flow/ Variable Speed with Reset Set Point
B165: Market Lookup
C166: Materials | D166: Labor
B167: Oakland, CA | C167: 110.2 | D167: 127.3
B168: Los Angeles, CA | C168: 103.3 | D168: 115.1
B169: Fresno, CA | C169: 103.9 | D169: 112.3
B170: San Francisco, CA | C170: 112.4 | D170: 137.5
B171: San Jose, CA | C171: 107 | D171: 130.4
B172: Riverside, CA | C172: 102.1 | D172: 112.5
B173: Sacramento, CA | C173: 106 | D173: 113.6
B174: Average National | C174: 100 | D174: 100
B175: ADD MARKET
B178: Efficiencies
B180: Pump | E180: Current value, based on input system gpm
B181: GPM | E181: Pump | F181: =VLOOKUP('Piping Circuit'!$B$3,$B$183:$C$191,2) -> 0.5484942232
B182: Greater than | C182: Efficiency
B183: 0 | C183: =($G$188*LN(B184)+$G$189)*0.9 -> 0.5484942232
B184: 60 | C184: =($G$188*LN(B185)+$G$189)*0.9 -> 0.5754811409
B185: 100 | C185: 0.6605077458 | F185: Pump Efficiency eqn
B186: 500 | C186: 0.6971267114
B187: 1000 | C187: 0.718547433 | F187: eff = m * ln(gpm) + b
B188: 1500 | C188: 0.7337456769 | F188: m | G188: 0.0587
B189: 2000 | C189: 0.7455343508 | F189: b | G189: 0.3691
B190: 2500 | C190: 0.7551663986
B191: 3000 | C191: 0.763310179
B192: 3500 | C192: 0.7703646425
B193: 4000 | C193: 0.7765871203
B194: 4500 | C194: 0.7821533163
B195: 5000 | C195: 0.7871885531
B196: 5500
B198: Motor (premium) | E198: Current value, based on calculated HP
B199: HP | E199: Motor | F199: =VLOOKUP(BHP_TOTAL,B201:C213,2) -> 
B200: Greater than | C200: Efficiency
B201: 0 | C201: 0.895
B202: 5 | C202: 0.91
B203: 10 | C203: 0.924
B204: 15 | C204: 0.924
B205: 20 | C205: 0.936
B206: 30 | C206: 0.941
B207: 40 | C207: 0.941
B208: 60 | C208: 0.95
B209: 75 | C209: 0.954
B210: 100 | C210: 0.954
B211: 125 | C211: 0.958
B212: 150 | C212: 0.958
B213: 200 | C213: 0.958
B215: Chiller | C215: 0.6 | D215: kW/ton
B216: Boiler | C216: 0.75
B217: VS Drive | C217: 0.97

Sheet Versions (hidden)
A1: Version | B1: Update | C1: Requested by | D1: Date Completed
A2: 1.1 | B2: Added cost escalation feature to bring 2002 Means costs to present.
A3: 1.1 | B3: Changed display of system head, with and without safety factor.
A4: 1.2 | B4: Delete the two pull downs that ask if escalation and inflation apply. If people want no inflation they can enter a zero. | C4: Steve | D4: 2008-05-20
A5: 1.2 | B5: We need to figure out some way of detecting whether the Optimize button needs to be repressed. Perhaps after you press the button, the button grays out and the LCC cost gets copied to a hidden cell. Then if the LCC in cell B18 ever differs from the hidden cell value, you know that an input was changed so you can un-gray out the button, indicating that it must be repressed. | C5: Steve | D5: 2008-05-21
B6: Add buttons for 189.1 and 90.1 compliance | C6: Steve
A7: 1.4 | B7: Updated to Excel 2007
A8: 1.5 | B8: Unlocked input cells on "System Assumptions" | C8: Steve | D8: 2010-05-13
B9: Remove "optimize" button de-activation macro so that the undo command works | C9: Steve | D9: 2010-05-13
A10: 1.6 | B10: Updated changeover from ball to butterfly valve from 2.5" to 3". Now all pipes 3" and larger will have butterfly valves, all pipes 2.5" and smaller will have ball valves. Also added a pull-down menu to the "Constants" sheet to change this in the future. Current year updated to 2011. | C10: Steve | D10: 2011-01-07
